Workbook

Sheet treeCalc_2 (hidden)
A1: Name | B1: MAX REWARD TREE | E1: Ptree1 Compatibility | F1: 3 | H1: Output Label | K1: R-Value Ref. | L1: 100
A2: SheetRef | B2: ='MAX REWARD TREE'!#REF! ->  | E2: Eval. Function | F2: =_xll.PTreeEvaluate5(B3,$L$11:$L$20,$J$11:$J$20,$K$11:$K$20,$N$11:$N$20,$G$11:$G$20,,L1) -> 154805378
A3: GenInfo | B3: 0,2,1,0,0,Exponential, 0,0,-1,0,-1,-1,.0001 | E3: Creation Version | F3: 6.3.0 | H3: Output Value NF | I3: <NF>
A4: Def. Link | B4: = | E4: Required Version | F4: 5.0.0 | H4: Output Prob NF | I4: Automatic
A5: EXT REFS | B5: 0 | D5: 0 | E5: Recommended Version | F5: 5.0.0 | H5: Input Value NF | I5: <NF>
A6: Def. Form | E6: Last Modified By Version | F6: 8.2.0 | H6: Input Prob NF | I6: Automatic
A7: Calc Macro | F7: 37001417
A8: Highest# | B8: 10
A10: Anchor Cell | B10: Branch Name | C10: bformtype | D10: valformula | E10: pbformula | F10: distribution | G10: cumPayoffFunction | H10: link | I10: ENDNODEFORMULA | J10: VAL | K10: PB | L10: GenInfo | M10: IntRefs | N10: RefRefs | O10: NodeNames | P10: Collapsed
A11: ='MAX REWARD TREE'!$C$5 -> 953.4492 | B11: =B1 -> MAX REWARD TREE | C11: 0 | I11: DEFAULT | J11: ='MAX REWARD TREE'!$B$5 -> 0 | K11: ='MAX REWARD TREE'!$B$4 -> 0 | L11: 2,0,0,9,2,3,4,5,6,7,8,9,10,0,0,0 | M11: 0 | O11: ='MAX REWARD TREE'!$C$4 -> Decision | P11: FALSE
A12: ='MAX REWARD TREE'!$D$3 -> 611.0314 | B12: ALTERNATIVE 1 | C12: 0 | H12: DEFAULT | I12: DEFAULT | J12: ='MAX REWARD TREE'!$C$3 -> 611.0314 | L12: 4,0,0,0,1,0,0 | M12: 0 | P12: FALSE
A13: ='MAX REWARD TREE'!$D$7 -> 697.0314 | B13: ALTERNATIVE 2 | C13: 0 | H13: DEFAULT | I13: DEFAULT | J13: ='MAX REWARD TREE'!$C$7 -> 697.0314 | L13: 4,0,0,0,1,0,0 | M13: 0 | P13: FALSE
A14: ='MAX REWARD TREE'!$D$9 -> 649.0314 | B14: ALTERNATIVE 3 | C14: 0 | H14: DEFAULT | I14: DEFAULT | J14: ='MAX REWARD TREE'!$C$9 -> 649.0314 | L14: 4,0,0,0,1,0,0 | M14: 0 | P14: FALSE
A15: ='MAX REWARD TREE'!$D$11 -> 731.1312 | B15: ALTERNATIVE 4 | C15: 0 | H15: DEFAULT | I15: DEFAULT | J15: ='MAX REWARD TREE'!$C$11 -> 731.1312 | L15: 4,0,0,0,1,0,0 | M15: 0 | P15: FALSE
A16: ='MAX REWARD TREE'!$D$13 -> 645.1312 | B16: ALTERNATIVE 5 | C16: 0 | H16: DEFAULT | I16: DEFAULT | J16: ='MAX REWARD TREE'!$C$13 -> 645.1312 | L16: 4,0,0,0,1,0,0 | M16: 0 | P16: FALSE
A17: ='MAX REWARD TREE'!$D$15 -> 683.1312 | B17: ALTERNATIVE 6 | C17: 0 | H17: DEFAULT | I17: DEFAULT | J17: ='MAX REWARD TREE'!$C$15 -> 683.1312 | L17: 4,0,0,0,1,0,0 | M17: 0 | P17: FALSE
A18: ='MAX REWARD TREE'!$D$17 -> 905.4492 | B18: ALTERNATIVE 7 | C18: 0 | H18: DEFAULT | I18: DEFAULT | J18: ='MAX REWARD TREE'!$C$17 -> 905.4492 | L18: 4,0,0,0,1,0,0 | M18: 0 | P18: FALSE
A19: ='MAX REWARD TREE'!$D$19 -> 867.4492 | B19: ALTERNATIVE 8 | C19: 0 | H19: DEFAULT | I19: DEFAULT | J19: ='MAX REWARD TREE'!$C$19 -> 867.4492 | L19: 4,0,0,0,1,0,0 | M19: 0 | P19: FALSE
A20: ='MAX REWARD TREE'!$D$21 -> 953.4492 | B20: ALTERNATIVE 9 | C20: 0 | H20: DEFAULT | I20: DEFAULT | J20: ='MAX REWARD TREE'!$C$21 -> 953.4492 | L20: 4,0,0,0,1,0,0 | M20: 0 | P20: FALSE

Sheet Cover Page
C11: Design 1 | D11: Design 2 | E11: Design 3 | H11: Team Performance -- Design 1 | L11: Team Performance -- Design 2 | P11: Team Performance -- Design 3
B12: Wing Length, L (cm) | I12: Mean | J12: S.D. | M12: Mean | N12: S.D. | Q12: Mean | R12: S.D.
B13: Wing Width, W (cm) | H13: Time | L13: Time | P13: Time
B14: Base Length, B (cm) | H14: Distance | L14: Distance | P14: Distance
B15: Tail Height, HT (cm)
B16: Body Height, HB (cm) | H16: Group Performance | L16: Group Performance | P16: Group Performance
B17: Number of Paper Clips, n | I17: Mean | J17: S.D. | M17: Mean | N17: S.D. | Q17: Mean | R17: S.D.
B18: Number of Trials, N | H18: Group Time | L18: Group Time | P18: Group Time
H19: Group Distance | L19: Group Distance | P19: Group Distance
B20: Total Area (cm2) | C20: =2*C12*C13+2*C13*C16+C14*C15 -> 0 | D20: =2*D12*D13+2*D13*D16+D14*D15 -> 0 | E20: 0
C22: Total Costs by Design
A23: Design Costs | B23: $ | C23: =C11 -> Design 1 | D23: =D11 -> Design 2 | E23: =E11 -> Design 3
A24: Cost of Paper per sq. meter ($/cm2) | B24: 1 | C24: =C20*$B$24 -> 0 | D24: =D20*$B$24 -> 0 | E24: =E20*$B$24 -> 0
A25: Cost per Paper Clip ($/clip) | B25: 10 | C25: =C17*$B$25 -> 0 | D25: =D17*$B$25 -> 0 | E25: 0
A26: Cost of Testing if N≤50 ($/test) | B26: 0.5 | C26: =IF(C18<=50,C18*$B$26,50*$B$26) -> 0 | D26: =IF(D18<=50,D18*$B$26,50*$B$26) -> 0 | E26: 0
A27: Cost of Testing for Extra Tests ($/test) | B27: 2 | C27: =IF(C18>50,(C18-50)*$B$27,0) -> 0 | D27: =IF(D18>50,(D18-50)*$B$27,0) -> 0 | E27: 0
B29: Total Cost by Design | C29: =SUM(C24:C25) -> 0 | D29: =SUM(D24:D25) -> 0 | E29: =SUM(E24:E25) -> 0
B30: Reward for time | C30: =D1_TimeReward ->  | D30: =D2_TimeReward ->  | E30: =D3_TimeReward -> 
B31: Reward for distance | C31: =D1_DistanceReward ->  | D31: =D2_DistanceReward ->  | E31: =D3_DistanceReward -> 
B32: Profit/Loss by Design | C32: =C30+C31-C29 ->  | D32: =D30+D31-D29 ->  | E32: =E30+E31-E29 -> 
B34: Overall Profit/Loss | C34: =SUM(C32:E32)-SUM(C26:C27) -> 
A37: Alternatives | B37: Design (Flight & Distance) | C37: Total Cost | D37: Total Reward | E37: Profit/Loss
A38: 1 | B38: Both are Design 1 | C38: =D1_TotalCost -> 0 | D38: =D1_TotalReward+C31 ->  | E38: =D38-C38-SUM($C$26:$C$27) -> 
A39: 2 | B39: D1 and D2 | C39: =D1_TotalCost+D2_TotalCost -> 0 | D39: =D1_TotalReward+D31 ->  | E39: =D39-C39-SUM($C$26:$C$27) -> 
A40: 3 | B40: D1 and D3 | C40: =D1_TotalCost+D3_TotalCost -> 0 | D40: =D1_TotalReward+E31 -> 
A41: 4 | B41: Both are Design 2 | C41: =D2_TotalCost -> 0 | D41: =D2_TotalReward+D31 -> 
A42: 5 | B42: D2 and D1 | C42: =D1_TotalCost+D2_TotalCost -> 0 | D42: =D2_TotalReward+C31 -> 
A43: 6 | B43: D2 and D3 | C43: =D2_TotalCost+D3_TotalCost -> 0 | D43: =D2_TotalReward+E31 -> 
A44: 7 | B44: Both are Design 3 | C44: =D3_TotalCost -> 0 | D44: =D3_TotalReward+E31 -> 
A45: 8 | B45: D3 and D1 | C45: =D1_TotalCost+D3_TotalCost -> 0 | D45: =D3_TotalReward+C31 -> 
A46: 9 | B46: D3 and D2 | C46: =D2_TotalCost+D3_TotalCost -> 0 | D46: =D3_TotalReward+D31 -> 
D48: MAX PROFIT | E48: =MAX(E38:E46) -> 
A49: Number of Samples | B49: 100

Sheet Design 1
A1: Materials
A2: Variable Costs | B2: Cost | E2: Area Paremeters
A3: Paper Clips | B3: ='Cover Page'!C25 -> 0 | E3: Wing Length, L | F3: ='Cover Page'!C12 -> 0
A4: Cost of Paper | B4: ='Cover Page'!C24 -> 0 | E4: Wing Width, W | F4: ='Cover Page'!C13 -> 0
A5: Testing Cost | B5: =SUM('Cover Page'!C26:C27) -> 0 | E5: Base Length, B | F5: ='Cover Page'!C14 -> 0
A6: Total Cost | B6: =SUM(B3:B5) -> 0 | E6: Tail Height, HT | F6: ='Cover Page'!C15 -> 0
E7: Body Height, HB | F7: ='Cover Page'!C16 -> 0
A8: Team Performance
B9: Mean | C9: S.D.
A10: Time | B10: ='Cover Page'!I13 -> 0 | C10: ='Cover Page'!J13 -> 0
A11: Distance | B11: ='Cover Page'!I14 -> 0 | C11: ='Cover Page'!J14 -> 0 | I11: Group Time 1 | J11: Group Time 2 | K11: Group Time 3 | L11: Best Time
I12: =B23 ->  | J12: =C23 ->  | K12: =D23 ->  | L12: =E23 -> 
A13: Simulation | B13: 1st Trial | C13: 2nd Trial | D13: 3rd Trial | E13: Best Time | H13: 1
A14: Time | B14: =NORMINV(RAND(),$B$10,$C$10) ->  | C14: =NORMINV(RAND(),$B$10,$C$10) ->  | D14: =NORMINV(RAND(),$B$10,$C$10) ->  | E14: =MAX(B14:D14) ->  | H14: 2
A15: Distance | B15: =NORMINV(RAND(),$B$11,$C$11) ->  | C15: =NORMINV(RAND(),$B$11,$C$11) ->  | D15: =NORMINV(RAND(),$B$11,$C$11) ->  | E15: =SUM(B15:D15) ->  | H15: 3
H16: 4 | I16: =B14 ->  | J16: =C14 -> 
A17: Group Performance
B18: Mean | C18: S.D.
A19: Group Time | B19: ='Cover Page'!I18 -> 0 | C19: ='Cover Page'!J18 -> 0
A20: Group Distance | B20: ='Cover Page'!I19 -> 0 | C20: ='Cover Page'!J19 -> 0
I21: Group Dist 1 | J21: Group Dist 2 | K21: Group Dist 3 | L21: Total
A22: Simulation | B22: 1st Trial | C22: 2nd Trial | D22: 3rd Trial | E22: Best Time | I22: =B24 ->  | J22: =C24 -> 
A23: Time | B23: =NORMINV(RAND(),$B$19,$C$19) ->  | C23: =NORMINV(RAND(),$B$19,$C$19) ->  | D23: =NORMINV(RAND(),$B$19,$C$19) ->  | E23: =MAX(B23:D23) ->  | H23: 1
A24: Distance | B24: =NORMINV(RAND(),$B$20,$C$20) ->  | C24: =NORMINV(RAND(),$B$20,$C$20) ->  | E24: =SUM(B24:D24) ->  | H24: 2
H25: 3
A26: Ranking | H26: 4 | I26: =B15 ->  | J26: =C15 -> 
A27: Time Rank | B27: =RANK(L16,L13:L16,0) -> 
A28: Distance Rank | B28: =RANK(L26,L23:L26,1) -> 
A30: Reward
A31: Time | B31: Prize
A32: Best | B32: 1000
A33: Worst | B33: 10
A35: Normalized rank (0-1) | B35: =(B27-H13)/(H16-H13) -> 
A36: Time Reward | B36: =B32*(B33/B32)^B35 -> 
A38: Distance | B38: Prize
A39: Best | B39: 500
A40: Second Place | B40: 100
A41: Others | B41: 0
A43: Distance Reward | B43: =IF(B28=1,B39,IF(B28=2,B40,B41)) -> 
A45: Total Reward | B45: =B36+B43 -> 

Sheet Design 2
A1: Materials
A2: Variable Costs | B2: Cost | E2: Area Paremeters
A3: Paper Clips | B3: ='Cover Page'!D25 -> 0 | E3: Wing Length, L | F3: ='Cover Page'!D12 -> 0
A4: Cost of Paper | B4: ='Cover Page'!D24 -> 0 | E4: Wing Width, W | F4: ='Cover Page'!D13 -> 0
A5: Testing Cost | B5: =SUM('Cover Page'!D26:D27) -> 0 | E5: Base Length, B | F5: ='Cover Page'!D14 -> 0
A6: Total Cost | B6: =SUM(B3:B5) -> 0 | E6: Tail Height, HT | F6: ='Cover Page'!D15 -> 0
E7: Body Height, HB | F7: ='Cover Page'!D16 -> 0
A8: Team Performance
B9: Mean | C9: S.D.
A10: Time | B10: ='Cover Page'!M13 -> 0 | C10: ='Cover Page'!N13 -> 0
A11: Distance | B11: ='Cover Page'!M14 -> 0 | C11: ='Cover Page'!N14 -> 0 | I11: Group Time 1 | J11: Group Time 2 | K11: Group Time 3 | L11: Best Time
I12: =B23 ->  | J12: =C23 ->  | K12: =D23 ->  | L12: =E23 -> 
A13: Simulation | B13: 1st Trial | C13: 2nd Trial | D13: 3rd Trial | E13: Best Time | H13: 1 | I13: 3.043053374 | J13: 2.877519606 | K13: 2.738460757 | L13: 3.043053374
A14: Time | B14: =NORMINV(RAND(),$B$10,$C$10) ->  | C14: =NORMINV(RAND(),$B$10,$C$10) ->  | E14: =MAX(B14:D14) ->  | H14: 2 | I14: 1.994867299 | J14: 3.580124673 | K14: 1.998111128 | L14: 3.580124673
A15: Distance | B15: =NORMINV(RAND(),$B$11,$C$11) ->  | C15: =NORMINV(RAND(),$B$11,$C$11) ->  | E15: =SUM(B15:D15) ->  | H15: 3 | I15: 4.108219406 | J15: 2.982924971 | K15: 2.879876208 | L15: 4.108219406
H16: 4 | I16: =B14 ->  | J16: =C14 -> 
A17: Group Performance
B18: Mean | C18: S.D.
A19: Group Time | B19: ='Cover Page'!M18 -> 0 | C19: ='Cover Page'!N18 -> 0
A20: Group Distance | B20: ='Cover Page'!M19 -> 0 | C20: ='Cover Page'!N19 -> 0
I21: Group Dist 1 | J21: Group Dist 2 | K21: Group Dist 3 | L21: Total
A22: Simulation | B22: 1st Trial | C22: 2nd Trial | D22: 3rd Trial | E22: Best Time | I22: =B24 ->  | J22: =C24 -> 
A23: Time | B23: =NORMINV(RAND(),$B$19,$C$19) ->  | C23: =NORMINV(RAND(),$B$19,$C$19) ->  | D23: =NORMINV(RAND(),$B$19,$C$19) ->  | E23: =MAX(B23:D23) ->  | H23: 1 | I23: 0.4856542547 | J23: 1.222829765 | K23: 0.1007330896 | L23: 1.809217109
A24: Distance | B24: =NORMINV(RAND(),$B$20,$C$20) ->  | C24: =NORMINV(RAND(),$B$20,$C$20) ->  | E24: =SUM(B24:D24) ->  | H24: 2 | I24: 1.42573623 | J24: 0.1382033431 | K24: -0.1876064079 | L24: 1.376333165
H25: 3 | I25: 0.6252618479 | J25: 0.01946223116 | K25: 1.280546601 | L25: 1.92527068
A26: Ranking | H26: 4 | I26: =B15 ->  | J26: =C15 -> 
A27: Time Rank | B27: =RANK(L16,L13:L16,0) -> 
A28: Distance Rank | B28: =RANK(L26,L23:L26,1) -> 
A30: Reward
A31: Time | B31: Prize
A32: Best | B32: 1000
A33: Worst | B33: 10
A35: Normalized rank (0-1) | B35: =(B27-H13)/(H16-H13) -> 
A36: Time Reward | B36: =B32*(B33/B32)^B35 -> 
A38: Distance | B38: Prize
A39: Best | B39: 500
A40: Second Place | B40: 100
A41: Others | B41: 0
A43: Distance Reward | B43: =IF(B28=1,B39,IF(B28=2,B40,B41)) -> 
A45: Total Reward | B45: =B36+B43 -> 

Sheet Design 3
A1: Materials
A2: Variable Costs | B2: Cost | E2: Area Paremeters
A3: Paper Clips | B3: ='Cover Page'!E25 -> 0 | E3: Wing Length, L | F3: ='Cover Page'!E12 -> 0
A4: Cost of Paper | B4: ='Cover Page'!E24 -> 0 | E4: Wing Width, W | F4: ='Cover Page'!E13 -> 0
A5: Testing Cost | B5: =SUM('Cover Page'!E26:E27) -> 0 | E5: Base Length, B | F5: ='Cover Page'!E14 -> 0
A6: Total Cost | B6: =SUM(B3:B5) -> 0 | E6: Tail Height, HT | F6: ='Cover Page'!E15 -> 0
E7: Body Height, HB | F7: ='Cover Page'!E16 -> 0
A8: Team Performance
B9: Mean | C9: S.D.
A10: Time | B10: ='Cover Page'!Q13 -> 0 | C10: ='Cover Page'!R13 -> 0
A11: Distance | B11: ='Cover Page'!Q14 -> 0 | C11: ='Cover Page'!R14 -> 0 | I11: Group Time 1 | J11: Group Time 2 | K11: Group Time 3 | L11: Best Time
I12: =B23 ->  | J12: =C23 ->  | K12: =D23 ->  | L12: =E23 -> 
A13: Simulation | B13: 1st Trial | C13: 2nd Trial | D13: 3rd Trial | E13: Best Time | H13: 1
A14: Time | B14: =NORMINV(RAND(),$B$10,$C$10) ->  | C14: =NORMINV(RAND(),$B$10,$C$10) ->  | D14: =NORMINV(RAND(),$B$10,$C$10) ->  | E14: =MAX(B14:D14) ->  | H14: 2
A15: Distance | B15: =NORMINV(RAND(),$B$11,$C$11) ->  | C15: =NORMINV(RAND(),$B$11,$C$11) ->  | E15: =SUM(B15:D15) ->  | H15: 3
H16: 4 | I16: =B14 ->  | J16: =C14 ->  | K16: =D14 ->  | L16: =E14 -> 
A17: Group Performance
B18: Mean | C18: S.D.
A19: Group Time | B19: ='Cover Page'!Q18 -> 0 | C19: ='Cover Page'!R18 -> 0
A20: Group Distance | B20: ='Cover Page'!Q19 -> 0 | C20: ='Cover Page'!R19 -> 0
I21: Group Dist 1 | J21: Group Dist 2 | K21: Group Dist 3 | L21: Total
A22: Simulation | B22: 1st Trial | C22: 2nd Trial | D22: 3rd Trial | E22: Best Time | I22: =B24 ->  | J22: =C24 -> 
A23: Time | B23: =NORMINV(RAND(),$B$19,$C$19) ->  | C23: =NORMINV(RAND(),$B$19,$C$19) ->  | D23: =NORMINV(RAND(),$B$19,$C$19) ->  | E23: =MAX(B23:D23) ->  | H23: 1
A24: Distance | B24: =NORMINV(RAND(),$B$20,$C$20) ->  | C24: =NORMINV(RAND(),$B$20,$C$20) ->  | E24: =SUM(B24:D24) ->  | H24: 2
H25: 3
A26: Ranking | H26: 5 | I26: =B15 ->  | J26: =C15 ->  | K26: =D15 ->  | L26: =E15 -> 
A27: Time Rank | B27: =RANK(L16,L13:L16,0) -> 
A28: Distance Rank | B28: =RANK(L26,L23:L26,1) -> 
A30: Reward
A31: Time | B31: Prize
A32: Best | B32: 1000
A33: Worst | B33: 10
A35: Normalized rank (0-1) | B35: =(B27-H13)/(H16-H13) -> 
A36: Time Reward | B36: =B32*(B33/B32)^B35 -> 
A38: Distance | B38: Prize
A39: Best | B39: 500
A40: Second Place | B40: 100
A41: Others | B41: 0
A43: Distance Reward | B43: =IF(B28=1,B39,IF(B28=2,B40,B41)) -> 
A45: Total Reward | B45: =B36+B43 -> 

Sheet COST
A1: 100
B3: Alt. 1 | C3: Alt. 2 | D3: Alt. 3 | E3: Alt. 4 | F3: Alt. 5 | G3: Alt. 6 | H3: Alt. 7 | I3: Alt. 8 | J3: Alt. 9 | K3: OPTIMAL
A4: Average | B4: =AVERAGE(B9:B1008) -> 151 | C4: =AVERAGE(C9:C1008) -> 283 | D4: 227 | E4: 132 | F4: 283 | G4: 208 | H4: 76 | I4: 227 | J4: 208 | K4: =MIN(B4:J4) -> 76
A5: StDev | B5: =STDEV(B9:B1008) -> 0 | C5: =STDEV(C9:C1008) -> 0 | D5: 0 | E5: 0 | F5: 0 | G5: 0 | H5: 0 | I5: 0 | J5: 0 | K5: =MIN(B5:J5) -> 0
B8: Alt. 1 | C8: Alt. 2 | D8: Alt. 3 | E8: Alt. 4 | F8: Alt. 5 | G8: Alt. 6 | H8: Alt. 7 | I8: Alt. 8 | J8: Alt. 9
A9: 1 | B9: 151 | C9: 283 | D9: 227 | E9: 132 | F9: 283 | G9: 208 | H9: 76 | I9: 227 | J9: 208
A10: =A9+1 -> 2 | B10: 151 | C10: 283 | D10: 227 | E10: 132 | F10: 283 | G10: 208 | H10: 76 | I10: 227 | J10: 208
A11: =A10+1 -> 3 | B11: 151 | C11: 283 | D11: 227 | E11: 132 | F11: 283 | G11: 208 | H11: 76 | I11: 227 | J11: 208
A12: 4 | B12: 151 | C12: 283 | D12: 227 | E12: 132 | F12: 283 | G12: 208 | H12: 76 | I12: 227 | J12: 208
A13: 5 | B13: 151 | C13: 283 | D13: 227 | E13: 132 | F13: 283 | G13: 208 | H13: 76 | I13: 227 | J13: 208
A14: 6 | B14: 151 | C14: 283 | D14: 227 | E14: 132 | F14: 283 | G14: 208 | H14: 76 | I14: 227 | J14: 208
A15: 7 | B15: 151 | C15: 283 | D15: 227 | E15: 132 | F15: 283 | G15: 208 | H15: 76 | I15: 227 | J15: 208
A16: 8 | B16: 151 | C16: 283 | D16: 227 | E16: 132 | F16: 283 | G16: 208 | H16: 76 | I16: 227 | J16: 208
A17: 9 | B17: 151 | C17: 283 | D17: 227 | E17: 132 | F17: 283 | G17: 208 | H17: 76 | I17: 227 | J17: 208
A18: 10 | B18: 151 | C18: 283 | D18: 227 | E18: 132 | F18: 283 | G18: 208 | H18: 76 | I18: 227 | J18: 208
A19: 11 | B19: 151 | C19: 283 | D19: 227 | E19: 132 | F19: 283 | G19: 208 | H19: 76 | I19: 227 | J19: 208
A20: 12 | B20: 151 | C20: 283 | D20: 227 | E20: 132 | F20: 283 | G20: 208 | H20: 76 | I20: 227 | J20: 208
A21: 13 | B21: 151 | C21: 283 | D21: 227 | E21: 132 | F21: 283 | G21: 208 | H21: 76 | I21: 227 | J21: 208
A22: 14 | B22: 151 | C22: 283 | D22: 227 | E22: 132 | F22: 283 | G22: 208 | H22: 76 | I22: 227 | J22: 208
A23: 15 | B23: 151 | C23: 283 | D23: 227 | E23: 132 | F23: 283 | G23: 208 | H23: 76 | I23: 227 | J23: 208
A24: 16 | B24: 151 | C24: 283 | D24: 227 | E24: 132 | F24: 283 | G24: 208 | H24: 76 | I24: 227 | J24: 208
A25: 17 | B25: 151 | C25: 283 | D25: 227 | E25: 132 | F25: 283 | G25: 208 | H25: 76 | I25: 227 | J25: 208
A26: 18 | B26: 151 | C26: 283 | D26: 227 | E26: 132 | F26: 283 | G26: 208 | H26: 76 | I26: 227 | J26: 208
A27: 19 | B27: 151 | C27: 283 | D27: 227 | E27: 132 | F27: 283 | G27: 208 | H27: 76 | I27: 227 | J27: 208
A28: 20 | B28: 151 | C28: 283 | D28: 227 | E28: 132 | F28: 283 | G28: 208 | H28: 76 | I28: 227 | J28: 208
A29: 21 | B29: 151 | C29: 283 | D29: 227 | E29: 132 | F29: 283 | G29: 208 | H29: 76 | I29: 227 | J29: 208
A30: 22 | B30: 151 | C30: 283 | D30: 227 | E30: 132 | F30: 283 | G30: 208 | H30: 76 | I30: 227 | J30: 208
A31: 23 | B31: 151 | C31: 283 | D31: 227 | E31: 132 | F31: 283 | G31: 208 | H31: 76 | I31: 227 | J31: 208
A32: 24 | B32: 151 | C32: 283 | D32: 227 | E32: 132 | F32: 283 | G32: 208 | H32: 76 | I32: 227 | J32: 208
A33: 25 | B33: 151 | C33: 283 | D33: 227 | E33: 132 | F33: 283 | G33: 208 | H33: 76 | I33: 227 | J33: 208
A34: 26 | B34: 151 | C34: 283 | D34: 227 | E34: 132 | F34: 283 | G34: 208 | H34: 76 | I34: 227 | J34: 208
A35: 27 | B35: 151 | C35: 283 | D35: 227 | E35: 132 | F35: 283 | G35: 208 | H35: 76 | I35: 227 | J35: 208
A36: 28 | B36: 151 | C36: 283 | D36: 227 | E36: 132 | F36: 283 | G36: 208 | H36: 76 | I36: 227 | J36: 208
A37: 29 | B37: 151 | C37: 283 | D37: 227 | E37: 132 | F37: 283 | G37: 208 | H37: 76 | I37: 227 | J37: 208
A38: 30 | B38: 151 | C38: 283 | D38: 227 | E38: 132 | F38: 283 | G38: 208 | H38: 76 | I38: 227 | J38: 208
A39: 31 | B39: 151 | C39: 283 | D39: 227 | E39: 132 | F39: 283 | G39: 208 | H39: 76 | I39: 227 | J39: 208
A40: 32 | B40: 151 | C40: 283 | D40: 227 | E40: 132 | F40: 283 | G40: 208 | H40: 76 | I40: 227 | J40: 208
A41: 33 | B41: 151 | C41: 283 | D41: 227 | E41: 132 | F41: 283 | G41: 208 | H41: 76 | I41: 227 | J41: 208
A42: 34 | B42: 151 | C42: 283 | D42: 227 | E42: 132 | F42: 283 | G42: 208 | H42: 76 | I42: 227 | J42: 208
A43: 35 | B43: 151 | C43: 283 | D43: 227 | E43: 132 | F43: 283 | G43: 208 | H43: 76 | I43: 227 | J43: 208
A44: 36 | B44: 151 | C44: 283 | D44: 227 | E44: 132 | F44: 283 | G44: 208 | H44: 76 | I44: 227 | J44: 208
A45: 37 | B45: 151 | C45: 283 | D45: 227 | E45: 132 | F45: 283 | G45: 208 | H45: 76 | I45: 227 | J45: 208
A46: 38 | B46: 151 | C46: 283 | D46: 227 | E46: 132 | F46: 283 | G46: 208 | H46: 76 | I46: 227 | J46: 208
A47: 39 | B47: 151 | C47: 283 | D47: 227 | E47: 132 | F47: 283 | G47: 208 | H47: 76 | I47: 227 | J47: 208
A48: 40 | B48: 151 | C48: 283 | D48: 227 | E48: 132 | F48: 283 | G48: 208 | H48: 76 | I48: 227 | J48: 208
A49: 41 | B49: 151 | C49: 283 | D49: 227 | E49: 132 | F49: 283 | G49: 208 | H49: 76 | I49: 227 | J49: 208
A50: 42 | B50: 151 | C50: 283 | D50: 227 | E50: 132 | F50: 283 | G50: 208 | H50: 76 | I50: 227 | J50: 208
A51: 43 | B51: 151 | C51: 283 | D51: 227 | E51: 132 | F51: 283 | G51: 208 | H51: 76 | I51: 227 | J51: 208
A52: 44 | B52: 151 | C52: 283 | D52: 227 | E52: 132 | F52: 283 | G52: 208 | H52: 76 | I52: 227 | J52: 208
A53: 45 | B53: 151 | C53: 283 | D53: 227 | E53: 132 | F53: 283 | G53: 208 | H53: 76 | I53: 227 | J53: 208
A54: 46 | B54: 151 | C54: 283 | D54: 227 | E54: 132 | F54: 283 | G54: 208 | H54: 76 | I54: 227 | J54: 208
A55: 47 | B55: 151 | C55: 283 | D55: 227 | E55: 132 | F55: 283 | G55: 208 | H55: 76 | I55: 227 | J55: 208
A56: 48 | B56: 151 | C56: 283 | D56: 227 | E56: 132 | F56: 283 | G56: 208 | H56: 76 | I56: 227 | J56: 208
A57: 49 | B57: 151 | C57: 283 | D57: 227 | E57: 132 | F57: 283 | G57: 208 | H57: 76 | I57: 227 | J57: 208
A58: 50 | B58: 151 | C58: 283 | D58: 227 | E58: 132 | F58: 283 | G58: 208 | H58: 76 | I58: 227 | J58: 208
A59: 51 | B59: 151 | C59: 283 | D59: 227 | E59: 132 | F59: 283 | G59: 208 | H59: 76 | I59: 227 | J59: 208
A60: 52 | B60: 151 | C60: 283 | D60: 227 | E60: 132 | F60: 283 | G60: 208 | H60: 76 | I60: 227 | J60: 208
A61: 53 | B61: 151 | C61: 283 | D61: 227 | E61: 132 | F61: 283 | G61: 208 | H61: 76 | I61: 227 | J61: 208
A62: 54 | B62: 151 | C62: 283 | D62: 227 | E62: 132 | F62: 283 | G62: 208 | H62: 76 | I62: 227 | J62: 208
A63: 55 | B63: 151 | C63: 283 | D63: 227 | E63: 132 | F63: 283 | G63: 208 | H63: 76 | I63: 227 | J63: 208
A64: 56 | B64: 151 | C64: 283 | D64: 227 | E64: 132 | F64: 283 | G64: 208 | H64: 76 | I64: 227 | J64: 208
A65: 57 | B65: 151 | C65: 283 | D65: 227 | E65: 132 | F65: 283 | G65: 208 | H65: 76 | I65: 227 | J65: 208
A66: 58 | B66: 151 | C66: 283 | D66: 227 | E66: 132 | F66: 283 | G66: 208 | H66: 76 | I66: 227 | J66: 208
A67: 59 | B67: 151 | C67: 283 | D67: 227 | E67: 132 | F67: 283 | G67: 208 | H67: 76 | I67: 227 | J67: 208
A68: 60 | B68: 151 | C68: 283 | D68: 227 | E68: 132 | F68: 283 | G68: 208 | H68: 76 | I68: 227 | J68: 208
A69: 61 | B69: 151 | C69: 283 | D69: 227 | E69: 132 | F69: 283 | G69: 208 | H69: 76 | I69: 227 | J69: 208
A70: 62 | B70: 151 | C70: 283 | D70: 227 | E70: 132 | F70: 283 | G70: 208 | H70: 76 | I70: 227 | J70: 208
A71: 63 | B71: 151 | C71: 283 | D71: 227 | E71: 132 | F71: 283 | G71: 208 | H71: 76 | I71: 227 | J71: 208
A72: 64 | B72: 151 | C72: 283 | D72: 227 | E72: 132 | F72: 283 | G72: 208 | H72: 76 | I72: 227 | J72: 208
A73: 65 | B73: 151 | C73: 283 | D73: 227 | E73: 132 | F73: 283 | G73: 208 | H73: 76 | I73: 227 | J73: 208
A74: 66 | B74: 151 | C74: 283 | D74: 227 | E74: 132 | F74: 283 | G74: 208 | H74: 76 | I74: 227 | J74: 208
A75: =A74+1 -> 67 | B75: 151 | C75: 283 | D75: 227 | E75: 132 | F75: 283 | G75: 208 | H75: 76 | I75: 227 | J75: 208
A76: 68 | B76: 151 | C76: 283 | D76: 227 | E76: 132 | F76: 283 | G76: 208 | H76: 76 | I76: 227 | J76: 208
A77: 69 | B77: 151 | C77: 283 | D77: 227 | E77: 132 | F77: 283 | G77: 208 | H77: 76 | I77: 227 | J77: 208
A78: 70 | B78: 151 | C78: 283 | D78: 227 | E78: 132 | F78: 283 | G78: 208 | H78: 76 | I78: 227 | J78: 208
A79: 71 | B79: 151 | C79: 283 | D79: 227 | E79: 132 | F79: 283 | G79: 208 | H79: 76 | I79: 227 | J79: 208
A80: 72 | B80: 151 | C80: 283 | D80: 227 | E80: 132 | F80: 283 | G80: 208 | H80: 76 | I80: 227 | J80: 208
A81: 73 | B81: 151 | C81: 283 | D81: 227 | E81: 132 | F81: 283 | G81: 208 | H81: 76 | I81: 227 | J81: 208
A82: 74 | B82: 151 | C82: 283 | D82: 227 | E82: 132 | F82: 283 | G82: 208 | H82: 76 | I82: 227 | J82: 208
A83: 75 | B83: 151 | C83: 283 | D83: 227 | E83: 132 | F83: 283 | G83: 208 | H83: 76 | I83: 227 | J83: 208
A84: 76 | B84: 151 | C84: 283 | D84: 227 | E84: 132 | F84: 283 | G84: 208 | H84: 76 | I84: 227 | J84: 208
A85: 77 | B85: 151 | C85: 283 | D85: 227 | E85: 132 | F85: 283 | G85: 208 | H85: 76 | I85: 227 | J85: 208
A86: 78 | B86: 151 | C86: 283 | D86: 227 | E86: 132 | F86: 283 | G86: 208 | H86: 76 | I86: 227 | J86: 208
A87: 79 | B87: 151 | C87: 283 | D87: 227 | E87: 132 | F87: 283 | G87: 208 | H87: 76 | I87: 227 | J87: 208
A88: 80 | B88: 151 | C88: 283 | D88: 227 | E88: 132 | F88: 283 | G88: 208 | H88: 76 | I88: 227 | J88: 208
A89: 81 | B89: 151 | C89: 283 | D89: 227 | E89: 132 | F89: 283 | G89: 208 | H89: 76 | I89: 227 | J89: 208
A90: 82 | B90: 151 | C90: 283 | D90: 227 | E90: 132 | F90: 283 | G90: 208 | H90: 76 | I90: 227 | J90: 208
A91: 83 | B91: 151 | C91: 283 | D91: 227 | E91: 132 | F91: 283 | G91: 208 | H91: 76 | I91: 227 | J91: 208
A92: 84 | B92: 151 | C92: 283 | D92: 227 | E92: 132 | F92: 283 | G92: 208 | H92: 76 | I92: 227 | J92: 208
A93: 85 | B93: 151 | C93: 283 | D93: 227 | E93: 132 | F93: 283 | G93: 208 | H93: 76 | I93: 227 | J93: 208
A94: 86 | B94: 151 | C94: 283 | D94: 227 | E94: 132 | F94: 283 | G94: 208 | H94: 76 | I94: 227 | J94: 208
A95: 87 | B95: 151 | C95: 283 | D95: 227 | E95: 132 | F95: 283 | G95: 208 | H95: 76 | I95: 227 | J95: 208
A96: 88 | B96: 151 | C96: 283 | D96: 227 | E96: 132 | F96: 283 | G96: 208 | H96: 76 | I96: 227 | J96: 208
A97: 89 | B97: 151 | C97: 283 | D97: 227 | E97: 132 | F97: 283 | G97: 208 | H97: 76 | I97: 227 | J97: 208
A98: 90 | B98: 151 | C98: 283 | D98: 227 | E98: 132 | F98: 283 | G98: 208 | H98: 76 | I98: 227 | J98: 208
A99: 91 | B99: 151 | C99: 283 | D99: 227 | E99: 132 | F99: 283 | G99: 208 | H99: 76 | I99: 227 | J99: 208
A100: 92 | B100: 151 | C100: 283 | D100: 227 | E100: 132 | F100: 283 | G100: 208 | H100: 76 | I100: 227 | J100: 208
A101: 93 | B101: 151 | C101: 283 | D101: 227 | E101: 132 | F101: 283 | G101: 208 | H101: 76 | I101: 227 | J101: 208
A102: 94 | B102: 151 | C102: 283 | D102: 227 | E102: 132 | F102: 283 | G102: 208 | H102: 76 | I102: 227 | J102: 208
A103: 95 | B103: 151 | C103: 283 | D103: 227 | E103: 132 | F103: 283 | G103: 208 | H103: 76 | I103: 227 | J103: 208
A104: 96 | B104: 151 | C104: 283 | D104: 227 | E104: 132 | F104: 283 | G104: 208 | H104: 76 | I104: 227 | J104: 208
A105: 97 | B105: 151 | C105: 283 | D105: 227 | E105: 132 | F105: 283 | G105: 208 | H105: 76 | I105: 227 | J105: 208
A106: 98 | B106: 151 | C106: 283 | D106: 227 | E106: 132 | F106: 283 | G106: 208 | H106: 76 | I106: 227 | J106: 208
A107: 99 | B107: 151 | C107: 283 | D107: 227 | E107: 132 | F107: 283 | G107: 208 | H107: 76 | I107: 227 | J107: 208
A108: 100 | B108: 151 | C108: 283 | D108: 227 | E108: 132 | F108: 283 | G108: 208 | H108: 76 | I108: 227 | J108: 208
A109: 101
A110: 102
A111: 103
A112: 104
A113: 105
A114: 106
A115: 107
A116: 108
A117: 109
A118: 110
A119: 111
A120: 112
A121: 113
A122: 114
A123: 115
A124: 116
A125: 117
A126: 118
A127: 119
A128: 120
A129: 121
A130: 122
A131: 123
A132: 124
A133: 125
A134: 126
A135: 127
A136: 128
A137: 129
A138: 130
A139: =A138+1 -> 131
A140: 132
A141: 133
A142: 134
A143: 135
A144: 136
A145: 137
A146: 138
A147: 139
A148: 140
A149: 141
A150: 142
A151: 143
A152: 144
A153: 145
A154: 146
A155: 147
A156: 148
A157: 149
A158: 150
A159: 151
A160: 152
A161: 153
A162: 154
A163: 155
A164: 156
A165: 157
A166: 158
A167: 159
A168: 160
A169: 161
A170: 162
A171: 163
A172: 164
A173: 165
A174: 166
A175: 167
A176: 168
A177: 169
A178: 170
A179: 171
A180: 172
A181: 173
A182: 174
A183: 175
A184: 176
A185: 177
A186: 178
A187: 179
A188: 180
A189: 181
A190: 182
A191: 183
A192: 184
A193: 185
A194: 186
A195: 187
A196: 188
A197: 189
A198: 190
A199: 191
A200: 192
A201: 193
A202: 194
A203: =A202+1 -> 195
... 805 more rows

Sheet REWARD
A1: 100
B3: Alt. 1 | C3: Alt. 2 | D3: Alt. 3 | E3: Alt. 4 | F3: Alt. 5 | G3: Alt. 6 | H3: Alt. 7 | I3: Alt. 8 | J3: Alt. 9 | K3: OPTIMAL
A4: Average | B4: =AVERAGE(B9:B1008) -> 611.0314 | C4: =AVERAGE(C9:C1008) -> 697.0314 | D4: 649.0314 | E4: 731.1312 | F4: 645.1312 | G4: 683.1312 | H4: 905.4492 | I4: 867.4492 | J4: 953.4492 | K4: =MIN(B4:J4) -> 611.0314
A5: StDev | B5: =STDEV(B9:B1008) -> 313.3319201 | C5: =STDEV(C9:C1008) -> 282.6337932 | D5: 300.3259792 | E5: 110.3917456 | F5: 207.844543 | G5: 175.4268368 | H5: 424.2625287 | I5: 435.3929672 | J5: 408.4919582 | K5: =MIN(B5:J5) -> 110.3917456
B8: Alt. 1 | C8: Alt. 2 | D8: Alt. 3 | E8: Alt. 4 | F8: Alt. 5 | G8: Alt. 6 | H8: Alt. 7 | I8: Alt. 8 | J8: Alt. 9
A9: 1 | B9: 1100 | C9: 1500 | D9: 1500 | E9: 715.44 | F9: 315.44 | G9: 715.44 | H9: 715.44 | I9: 315.44 | J9: 715.44
A10: =A9+1 -> 2 | B10: 715.44 | C10: 715.44 | D10: 715.44 | E10: 715.44 | F10: 715.44 | G10: 715.44 | H10: 715.44 | I10: 715.44 | J10: 715.44
A11: =A10+1 -> 3 | B11: 110 | C11: 510 | D11: 510 | E11: 715.44 | F11: 315.44 | G11: 715.44 | H11: 715.44 | I11: 315.44 | J11: 715.44
A12: 4 | B12: 46.42 | C12: 546.42 | D12: 546.42 | E12: 715.44 | F12: 215.44 | G12: 715.44 | H12: 546.42 | I12: 46.42 | J12: 546.42
A13: 5 | B13: 110 | C13: 510 | D13: 510 | E13: 715.44 | F13: 315.44 | G13: 715.44 | H13: 715.44 | I13: 315.44 | J13: 715.44
A14: 6 | B14: 510 | C14: 510 | D14: 510 | E14: 715.44 | F14: 715.44 | G14: 715.44 | H14: 715.44 | I14: 715.44 | J14: 715.44
A15: 7 | B15: 510 | C15: 510 | D15: 510 | E15: 715.44 | F15: 715.44 | G15: 715.44 | H15: 546.42 | I15: 546.42 | J15: 546.42
A16: 8 | B16: 715.44 | C16: 715.44 | D16: 715.44 | E16: 715.44 | F16: 715.44 | G16: 715.44 | H16: 1500 | I16: 1500 | J16: 1500
A17: 9 | B17: 715.44 | C17: 715.44 | D17: 715.44 | E17: 715.44 | F17: 715.44 | G17: 715.44 | H17: 715.44 | I17: 715.44 | J17: 715.44
A18: 10 | B18: 715.44 | C18: 715.44 | D18: 715.44 | E18: 715.44 | F18: 715.44 | G18: 715.44 | H18: 715.44 | I18: 715.44 | J18: 715.44
A19: 11 | B19: 510 | C19: 510 | D19: 110 | E19: 715.44 | F19: 715.44 | G19: 315.44 | H19: 315.44 | I19: 715.44 | J19: 715.44
A20: 12 | B20: 546.42 | C20: 546.42 | D20: 546.42 | E20: 715.44 | F20: 715.44 | G20: 715.44 | H20: 715.44 | I20: 715.44 | J20: 715.44
A21: 13 | B21: 146.42 | C21: 546.42 | D21: 546.42 | E21: 715.44 | F21: 315.44 | G21: 715.44 | H21: 1500 | I21: 1100 | J21: 1500
A22: 14 | B22: 546.42 | C22: 546.42 | D22: 546.42 | E22: 715.44 | F22: 715.44 | G22: 715.44 | H22: 546.42 | I22: 546.42 | J22: 546.42
A23: 15 | B23: 510 | C23: 510 | D23: 510 | E23: 715.44 | F23: 715.44 | G23: 715.44 | H23: 715.44 | I23: 715.44 | J23: 715.44
A24: 16 | B24: 546.42 | C24: 546.42 | D24: 546.42 | E24: 715.44 | F24: 715.44 | G24: 715.44 | H24: 546.42 | I24: 546.42 | J24: 546.42
A25: 17 | B25: 715.44 | C25: 715.44 | D25: 715.44 | E25: 715.44 | F25: 715.44 | G25: 715.44 | H25: 1500 | I25: 1500 | J25: 1500
A26: 18 | B26: 315.44 | C26: 715.44 | D26: 715.44 | E26: 715.44 | F26: 315.44 | G26: 715.44 | H26: 715.44 | I26: 315.44 | J26: 715.44
A27: 19 | B27: 715.44 | C27: 715.44 | D27: 715.44 | E27: 715.44 | F27: 715.44 | G27: 715.44 | H27: 546.42 | I27: 546.42 | J27: 546.42
A28: 20 | B28: 546.42 | C28: 546.42 | D28: 146.42 | E28: 715.44 | F28: 715.44 | G28: 315.44 | H28: 1100 | I28: 1500 | J28: 1500
A29: 21 | B29: 715.44 | C29: 715.44 | D29: 715.44 | E29: 715.44 | F29: 715.44 | G29: 715.44 | H29: 546.42 | I29: 546.42 | J29: 546.42
A30: 22 | B30: 715.44 | C30: 715.44 | D30: 715.44 | E30: 715.44 | F30: 715.44 | G30: 715.44 | H30: 546.42 | I30: 546.42 | J30: 546.42
A31: 23 | B31: 546.42 | C31: 546.42 | D31: 546.42 | E31: 715.44 | F31: 715.44 | G31: 715.44 | H31: 715.44 | I31: 715.44 | J31: 715.44
A32: 24 | B32: 315.44 | C32: 715.44 | D32: 715.44 | E32: 715.44 | F32: 315.44 | G32: 715.44 | H32: 715.44 | I32: 315.44 | J32: 715.44
A33: 25 | B33: 1500 | C33: 1500 | D33: 1500 | E33: 715.44 | F33: 715.44 | G33: 715.44 | H33: 715.44 | I33: 715.44 | J33: 715.44
A34: 26 | B34: 546.42 | C34: 546.42 | D34: 546.42 | E34: 715.44 | F34: 715.44 | G34: 715.44 | H34: 546.42 | I34: 546.42 | J34: 546.42
A35: 27 | B35: 110 | C35: 510 | D35: 510 | E35: 715.44 | F35: 315.44 | G35: 715.44 | H35: 1500 | I35: 1100 | J35: 1500
A36: 28 | B36: 715.44 | C36: 715.44 | D36: 715.44 | E36: 715.44 | F36: 715.44 | G36: 715.44 | H36: 1500 | I36: 1500 | J36: 1500
A37: 29 | B37: 546.42 | C37: 546.42 | D37: 546.42 | E37: 715.44 | F37: 715.44 | G37: 715.44 | H37: 1500 | I37: 1500 | J37: 1500
A38: 30 | B38: 546.42 | C38: 546.42 | D38: 546.42 | E38: 715.44 | F38: 715.44 | G38: 715.44 | H38: 1500 | I38: 1500 | J38: 1500
A39: 31 | B39: 546.42 | C39: 546.42 | D39: 546.42 | E39: 715.44 | F39: 715.44 | G39: 715.44 | H39: 546.42 | I39: 546.42 | J39: 546.42
A40: 32 | B40: 1100 | C40: 1500 | D40: 1500 | E40: 715.44 | F40: 315.44 | G40: 715.44 | H40: 1500 | I40: 1100 | J40: 1500
A41: 33 | B41: 510 | C41: 510 | D41: 510 | E41: 715.44 | F41: 715.44 | G41: 715.44 | H41: 715.44 | I41: 715.44 | J41: 715.44
A42: 34 | B42: 315.44 | C42: 715.44 | D42: 715.44 | E42: 715.44 | F42: 315.44 | G42: 715.44 | H42: 715.44 | I42: 315.44 | J42: 715.44
A43: 35 | B43: 315.44 | C43: 715.44 | D43: 715.44 | E43: 715.44 | F43: 315.44 | G43: 715.44 | H43: 715.44 | I43: 315.44 | J43: 715.44
A44: 36 | B44: 1500 | C44: 1500 | D44: 1500 | E44: 715.44 | F44: 715.44 | G44: 715.44 | H44: 1500 | I44: 1500 | J44: 1500
A45: 37 | B45: 315.44 | C45: 715.44 | D45: 715.44 | E45: 715.44 | F45: 315.44 | G45: 715.44 | H45: 1500 | I45: 1100 | J45: 1500
A46: 38 | B46: 715.44 | C46: 715.44 | D46: 715.44 | E46: 715.44 | F46: 715.44 | G46: 715.44 | H46: 715.44 | I46: 715.44 | J46: 715.44
A47: 39 | B47: 546.42 | C47: 546.42 | D47: 546.42 | E47: 715.44 | F47: 715.44 | G47: 715.44 | H47: 715.44 | I47: 715.44 | J47: 715.44
A48: 40 | B48: 510 | C48: 510 | D48: 510 | E48: 1500 | F48: 1500 | G48: 1500 | H48: 1500 | I48: 1500 | J48: 1500
A49: 41 | B49: 546.42 | C49: 546.42 | D49: 546.42 | E49: 715.44 | F49: 715.44 | G49: 715.44 | H49: 1500 | I49: 1500 | J49: 1500
A50: 42 | B50: 510 | C50: 510 | D50: 510 | E50: 715.44 | F50: 715.44 | G50: 715.44 | H50: 1500 | I50: 1500 | J50: 1500
A51: 43 | B51: 315.44 | C51: 715.44 | D51: 715.44 | E51: 715.44 | F51: 315.44 | G51: 715.44 | H51: 1500 | I51: 1100 | J51: 1500
A52: 44 | B52: 546.42 | C52: 546.42 | D52: 546.42 | E52: 715.44 | F52: 715.44 | G52: 715.44 | H52: 715.44 | I52: 715.44 | J52: 715.44
A53: 45 | B53: 546.42 | C53: 546.42 | D53: 546.42 | E53: 715.44 | F53: 715.44 | G53: 715.44 | H53: 715.44 | I53: 715.44 | J53: 715.44
A54: 46 | B54: 315.44 | C54: 715.44 | D54: 715.44 | E54: 715.44 | F54: 315.44 | G54: 715.44 | H54: 1500 | I54: 1100 | J54: 1500
A55: 47 | B55: 510 | C55: 510 | D55: 510 | E55: 715.44 | F55: 715.44 | G55: 715.44 | H55: 715.44 | I55: 715.44 | J55: 715.44
A56: 48 | B56: 715.44 | C56: 715.44 | D56: 715.44 | E56: 715.44 | F56: 715.44 | G56: 715.44 | H56: 715.44 | I56: 715.44 | J56: 715.44
A57: 49 | B57: 146.42 | C57: 546.42 | D57: 546.42 | E57: 715.44 | F57: 315.44 | G57: 715.44 | H57: 1500 | I57: 1100 | J57: 1500
A58: 50 | B58: 715.44 | C58: 715.44 | D58: 315.44 | E58: 715.44 | F58: 715.44 | G58: 315.44 | H58: 315.44 | I58: 715.44 | J58: 715.44
A59: 51 | B59: 546.42 | C59: 546.42 | D59: 546.42 | E59: 715.44 | F59: 715.44 | G59: 715.44 | H59: 715.44 | I59: 715.44 | J59: 715.44
A60: 52 | B60: 146.42 | C60: 546.42 | D60: 546.42 | E60: 715.44 | F60: 315.44 | G60: 715.44 | H60: 715.44 | I60: 315.44 | J60: 715.44
A61: 53 | B61: 1500 | C61: 1500 | D61: 1500 | E61: 715.44 | F61: 715.44 | G61: 715.44 | H61: 1500 | I61: 1500 | J61: 1500
A62: 54 | B62: 1500 | C62: 1500 | D62: 1500 | E62: 715.44 | F62: 715.44 | G62: 715.44 | H62: 1500 | I62: 1500 | J62: 1500
A63: 55 | B63: 715.44 | C63: 715.44 | D63: 315.44 | E63: 715.44 | F63: 715.44 | G63: 315.44 | H63: 110 | I63: 510 | J63: 510
A64: 56 | B64: 1500 | C64: 1500 | D64: 1500 | E64: 715.44 | F64: 715.44 | G64: 715.44 | H64: 715.44 | I64: 715.44 | J64: 715.44
A65: 57 | B65: 1500 | C65: 1500 | D65: 1500 | E65: 715.44 | F65: 715.44 | G65: 715.44 | H65: 1500 | I65: 1500 | J65: 1500
A66: 58 | B66: 510 | C66: 510 | D66: 510 | E66: 715.44 | F66: 715.44 | G66: 715.44 | H66: 715.44 | I66: 715.44 | J66: 715.44
A67: 59 | B67: 715.44 | C67: 715.44 | D67: 715.44 | E67: 715.44 | F67: 715.44 | G67: 715.44 | H67: 546.42 | I67: 546.42 | J67: 546.42
A68: 60 | B68: 715.44 | C68: 715.44 | D68: 715.44 | E68: 715.44 | F68: 715.44 | G68: 715.44 | H68: 546.42 | I68: 546.42 | J68: 546.42
A69: 61 | B69: 546.42 | C69: 546.42 | D69: 546.42 | E69: 1500 | F69: 1500 | G69: 1500 | H69: 715.44 | I69: 715.44 | J69: 715.44
A70: 62 | B70: 1500 | C70: 1500 | D70: 1100 | E70: 715.44 | F70: 715.44 | G70: 315.44 | H70: 1100 | I70: 1500 | J70: 1500
A71: 63 | B71: 546.42 | C71: 546.42 | D71: 546.42 | E71: 715.44 | F71: 715.44 | G71: 715.44 | H71: 715.44 | I71: 715.44 | J71: 715.44
A72: 64 | B72: 715.44 | C72: 715.44 | D72: 715.44 | E72: 715.44 | F72: 715.44 | G72: 715.44 | H72: 1500 | I72: 1500 | J72: 1500
A73: 65 | B73: 510 | C73: 510 | D73: 110 | E73: 715.44 | F73: 715.44 | G73: 315.44 | H73: 1100 | I73: 1500 | J73: 1500
A74: 66 | B74: 546.42 | C74: 546.42 | D74: 546.42 | E74: 715.44 | F74: 715.44 | G74: 715.44 | H74: 1500 | I74: 1500 | J74: 1500
A75: =A74+1 -> 67 | B75: 510 | C75: 510 | D75: 510 | E75: 715.44 | F75: 715.44 | G75: 715.44 | H75: 546.42 | I75: 546.42 | J75: 546.42
A76: 68 | B76: 715.44 | C76: 715.44 | D76: 715.44 | E76: 715.44 | F76: 715.44 | G76: 715.44 | H76: 510 | I76: 510 | J76: 510
A77: 69 | B77: 315.44 | C77: 715.44 | D77: 315.44 | E77: 715.44 | F77: 315.44 | G77: 315.44 | H77: 1100 | I77: 1100 | J77: 1500
A78: 70 | B78: 510 | C78: 510 | D78: 110 | E78: 715.44 | F78: 715.44 | G78: 315.44 | H78: 315.44 | I78: 715.44 | J78: 715.44
A79: 71 | B79: 715.44 | C79: 715.44 | D79: 715.44 | E79: 715.44 | F79: 715.44 | G79: 715.44 | H79: 1500 | I79: 1500 | J79: 1500
A80: 72 | B80: 715.44 | C80: 715.44 | D80: 715.44 | E80: 715.44 | F80: 715.44 | G80: 715.44 | H80: 715.44 | I80: 715.44 | J80: 715.44
A81: 73 | B81: 546.42 | C81: 546.42 | D81: 546.42 | E81: 715.44 | F81: 715.44 | G81: 715.44 | H81: 546.42 | I81: 546.42 | J81: 546.42
A82: 74 | B82: 715.44 | C82: 715.44 | D82: 315.44 | E82: 715.44 | F82: 715.44 | G82: 315.44 | H82: 1100 | I82: 1500 | J82: 1500
A83: 75 | B83: 510 | C83: 510 | D83: 510 | E83: 715.44 | F83: 715.44 | G83: 715.44 | H83: 1500 | I83: 1500 | J83: 1500
A84: 76 | B84: 315.44 | C84: 715.44 | D84: 715.44 | E84: 715.44 | F84: 315.44 | G84: 715.44 | H84: 715.44 | I84: 315.44 | J84: 715.44
A85: 77 | B85: 110 | C85: 510 | D85: 510 | E85: 715.44 | F85: 315.44 | G85: 715.44 | H85: 715.44 | I85: 315.44 | J85: 715.44
A86: 78 | B86: 546.42 | C86: 546.42 | D86: 546.42 | E86: 715.44 | F86: 715.44 | G86: 715.44 | H86: 1500 | I86: 1500 | J86: 1500
A87: 79 | B87: 715.44 | C87: 715.44 | D87: 715.44 | E87: 715.44 | F87: 715.44 | G87: 715.44 | H87: 1500 | I87: 1500 | J87: 1500
A88: 80 | B88: 546.42 | C88: 546.42 | D88: 546.42 | E88: 715.44 | F88: 715.44 | G88: 715.44 | H88: 546.42 | I88: 546.42 | J88: 546.42
A89: 81 | B89: 715.44 | C89: 715.44 | D89: 315.44 | E89: 715.44 | F89: 715.44 | G89: 315.44 | H89: 315.44 | I89: 715.44 | J89: 715.44
A90: 82 | B90: 546.42 | C90: 546.42 | D90: 546.42 | E90: 715.44 | F90: 715.44 | G90: 715.44 | H90: 715.44 | I90: 715.44 | J90: 715.44
A91: 83 | B91: 715.44 | C91: 715.44 | D91: 715.44 | E91: 715.44 | F91: 715.44 | G91: 715.44 | H91: 546.42 | I91: 546.42 | J91: 546.42
A92: 84 | B92: 715.44 | C92: 715.44 | D92: 715.44 | E92: 715.44 | F92: 715.44 | G92: 715.44 | H92: 715.44 | I92: 715.44 | J92: 715.44
A93: 85 | B93: 546.42 | C93: 546.42 | D93: 546.42 | E93: 715.44 | F93: 715.44 | G93: 715.44 | H93: 715.44 | I93: 715.44 | J93: 715.44
A94: 86 | B94: 546.42 | C94: 546.42 | D94: 546.42 | E94: 715.44 | F94: 715.44 | G94: 715.44 | H94: 1500 | I94: 1500 | J94: 1500
A95: 87 | B95: 715.44 | C95: 715.44 | D95: 715.44 | E95: 715.44 | F95: 715.44 | G95: 715.44 | H95: 546.42 | I95: 546.42 | J95: 546.42
A96: 88 | B96: 510 | C96: 510 | D96: 510 | E96: 715.44 | F96: 715.44 | G96: 715.44 | H96: 715.44 | I96: 715.44 | J96: 715.44
A97: 89 | B97: 546.42 | C97: 546.42 | D97: 546.42 | E97: 715.44 | F97: 715.44 | G97: 715.44 | H97: 546.42 | I97: 546.42 | J97: 546.42
A98: 90 | B98: 546.42 | C98: 546.42 | D98: 146.42 | E98: 715.44 | F98: 715.44 | G98: 315.44 | H98: 146.42 | I98: 546.42 | J98: 546.42
A99: 91 | B99: 546.42 | C99: 546.42 | D99: 546.42 | E99: 715.44 | F99: 715.44 | G99: 715.44 | H99: 1500 | I99: 1500 | J99: 1500
A100: 92 | B100: 546.42 | C100: 546.42 | D100: 546.42 | E100: 715.44 | F100: 715.44 | G100: 715.44 | H100: 715.44 | I100: 715.44 | J100: 715.44
A101: 93 | B101: 1000 | C101: 1500 | D101: 1100 | E101: 715.44 | F101: 215.44 | G101: 315.44 | H101: 110 | I101: 10 | J101: 510
A102: 94 | B102: 546.42 | C102: 546.42 | D102: 546.42 | E102: 715.44 | F102: 715.44 | G102: 715.44 | H102: 715.44 | I102: 715.44 | J102: 715.44
A103: 95 | B103: 715.44 | C103: 715.44 | D103: 715.44 | E103: 715.44 | F103: 715.44 | G103: 715.44 | H103: 715.44 | I103: 715.44 | J103: 715.44
A104: 96 | B104: 510 | C104: 510 | D104: 510 | E104: 715.44 | F104: 715.44 | G104: 715.44 | H104: 1500 | I104: 1500 | J104: 1500
A105: 97 | B105: 146.42 | C105: 546.42 | D105: 546.42 | E105: 715.44 | F105: 315.44 | G105: 715.44 | H105: 715.44 | I105: 315.44 | J105: 715.44
A106: 98 | B106: 510 | C106: 510 | D106: 510 | E106: 715.44 | F106: 715.44 | G106: 715.44 | H106: 1500 | I106: 1500 | J106: 1500
A107: 99 | B107: 715.44 | C107: 715.44 | D107: 715.44 | E107: 715.44 | F107: 715.44 | G107: 715.44 | H107: 715.44 | I107: 715.44 | J107: 715.44
A108: 100 | B108: 715.44 | C108: 715.44 | D108: 715.44 | E108: 715.44 | F108: 715.44 | G108: 715.44 | H108: 1500 | I108: 1500 | J108: 1500
A109: 101
A110: 102
A111: 103
A112: 104
A113: 105
A114: 106
A115: 107
A116: 108
A117: 109
A118: 110
A119: 111
A120: 112
A121: 113
A122: 114
A123: 115
A124: 116
A125: 117
A126: 118
A127: 119
A128: 120
A129: 121
A130: 122
A131: 123
A132: 124
A133: 125
A134: 126
A135: 127
A136: 128
A137: 129
A138: 130
A139: =A138+1 -> 131
A140: 132
A141: 133
A142: 134
A143: 135
A144: 136
A145: 137
A146: 138
A147: 139
A148: 140
A149: 141
A150: 142
A151: 143
A152: 144
A153: 145
A154: 146
A155: 147
A156: 148
A157: 149
A158: 150
A159: 151
A160: 152
A161: 153
A162: 154
A163: 155
A164: 156
A165: 157
A166: 158
A167: 159
A168: 160
A169: 161
A170: 162
A171: 163
A172: 164
A173: 165
A174: 166
A175: 167
A176: 168
A177: 169
A178: 170
A179: 171
A180: 172
A181: 173
A182: 174
A183: 175
A184: 176
A185: 177
A186: 178
A187: 179
A188: 180
A189: 181
A190: 182
A191: 183
A192: 184
A193: 185
A194: 186
A195: 187
A196: 188
A197: 189
A198: 190
A199: 191
A200: 192
A201: 193
A202: 194
A203: =A202+1 -> 195
... 805 more rows

Sheet PROFIT
A1: 100
B3: Alt. 1 | C3: Alt. 2 | D3: Alt. 3 | E3: Alt. 4 | F3: Alt. 5 | G3: Alt. 6 | H3: Alt. 7 | I3: Alt. 8 | J3: Alt. 9 | K3: OPTIMAL
A4: Average | B4: =AVERAGE(B9:B1008) -> 427.0314 | C4: 381.0314 | D4: 389.0314 | E4: 566.1312 | F4: 329.1312 | G4: 442.1312 | H4: 796.4492 | I4: 607.4492 | J4: 712.4492 | K4: =MAX(B4:J4) -> 796.4492
A5: StDev | B5: =STDEV(B9:B1008) -> 313.3319201 | C5: 282.6337932 | D5: 300.3259792 | E5: 110.3917456 | F5: 207.844543 | G5: 175.4268368 | H5: 424.2625287 | I5: 435.3929672 | J5: 408.4919582 | K5: =MIN(B5:J5) -> 110.3917456
A6: Pr(Loss) | B6: =COUNTIF(B9:B1008,"<0")/$A$1 -> 0.09 | C6: =COUNTIF(C9:C1008,"<0")/$A$1 -> 0 | D6: 0.05 | E6: 0 | F6: 0.21 | G6: 0 | H6: 0 | I6: 0.02 | J6: 0 | K6: =MIN(B6:J6) -> 0
B8: Alt. 1 | C8: Alt. 2 | D8: Alt. 3 | E8: Alt. 4 | F8: Alt. 5 | G8: Alt. 6 | H8: Alt. 7 | I8: Alt. 8 | J8: Alt. 9
A9: 1 | B9: 916 | C9: 1184 | D9: 1240 | E9: 550.44 | F9: -0.56 | G9: 474.44 | H9: 606.44 | I9: 55.44 | J9: 474.44
A10: =A9+1 -> 2 | B10: 531.44 | C10: 399.44 | D10: 455.44 | E10: 550.44 | F10: 399.44 | G10: 474.44 | H10: 606.44 | I10: 455.44 | J10: 474.44
A11: 3 | B11: -74 | C11: 194 | D11: 250 | E11: 550.44 | F11: -0.56 | G11: 474.44 | H11: 606.44 | I11: 55.44 | J11: 474.44
A12: 4 | B12: -137.58 | C12: 230.42 | D12: 286.42 | E12: 550.44 | F12: -100.56 | G12: 474.44 | H12: 437.42 | I12: -213.58 | J12: 305.42
A13: 5 | B13: -74 | C13: 194 | D13: 250 | E13: 550.44 | F13: -0.56 | G13: 474.44 | H13: 606.44 | I13: 55.44 | J13: 474.44
A14: 6 | B14: 326 | C14: 194 | D14: 250 | E14: 550.44 | F14: 399.44 | G14: 474.44 | H14: 606.44 | I14: 455.44 | J14: 474.44
A15: 7 | B15: 326 | C15: 194 | D15: 250 | E15: 550.44 | F15: 399.44 | G15: 474.44 | H15: 437.42 | I15: 286.42 | J15: 305.42
A16: 8 | B16: 531.44 | C16: 399.44 | D16: 455.44 | E16: 550.44 | F16: 399.44 | G16: 474.44 | H16: 1391 | I16: 1240 | J16: 1259
A17: 9 | B17: 531.44 | C17: 399.44 | D17: 455.44 | E17: 550.44 | F17: 399.44 | G17: 474.44 | H17: 606.44 | I17: 455.44 | J17: 474.44
A18: 10 | B18: 531.44 | C18: 399.44 | D18: 455.44 | E18: 550.44 | F18: 399.44 | G18: 474.44 | H18: 606.44 | I18: 455.44 | J18: 474.44
A19: 11 | B19: 326 | C19: 194 | D19: -150 | E19: 550.44 | F19: 399.44 | G19: 74.44 | H19: 206.44 | I19: 455.44 | J19: 474.44
A20: 12 | B20: 362.42 | C20: 230.42 | D20: 286.42 | E20: 550.44 | F20: 399.44 | G20: 474.44 | H20: 606.44 | I20: 455.44 | J20: 474.44
A21: 13 | B21: -37.58 | C21: 230.42 | D21: 286.42 | E21: 550.44 | F21: -0.56 | G21: 474.44 | H21: 1391 | I21: 840 | J21: 1259
A22: 14 | B22: 362.42 | C22: 230.42 | D22: 286.42 | E22: 550.44 | F22: 399.44 | G22: 474.44 | H22: 437.42 | I22: 286.42 | J22: 305.42
A23: 15 | B23: 326 | C23: 194 | D23: 250 | E23: 550.44 | F23: 399.44 | G23: 474.44 | H23: 606.44 | I23: 455.44 | J23: 474.44
A24: 16 | B24: 362.42 | C24: 230.42 | D24: 286.42 | E24: 550.44 | F24: 399.44 | G24: 474.44 | H24: 437.42 | I24: 286.42 | J24: 305.42
A25: 17 | B25: 531.44 | C25: 399.44 | D25: 455.44 | E25: 550.44 | F25: 399.44 | G25: 474.44 | H25: 1391 | I25: 1240 | J25: 1259
A26: 18 | B26: 131.44 | C26: 399.44 | D26: 455.44 | E26: 550.44 | F26: -0.56 | G26: 474.44 | H26: 606.44 | I26: 55.44 | J26: 474.44
A27: 19 | B27: 531.44 | C27: 399.44 | D27: 455.44 | E27: 550.44 | F27: 399.44 | G27: 474.44 | H27: 437.42 | I27: 286.42 | J27: 305.42
A28: 20 | B28: 362.42 | C28: 230.42 | D28: -113.58 | E28: 550.44 | F28: 399.44 | G28: 74.44 | H28: 991 | I28: 1240 | J28: 1259
A29: 21 | B29: 531.44 | C29: 399.44 | D29: 455.44 | E29: 550.44 | F29: 399.44 | G29: 474.44 | H29: 437.42 | I29: 286.42 | J29: 305.42
A30: 22 | B30: 531.44 | C30: 399.44 | D30: 455.44 | E30: 550.44 | F30: 399.44 | G30: 474.44 | H30: 437.42 | I30: 286.42 | J30: 305.42
A31: 23 | B31: 362.42 | C31: 230.42 | D31: 286.42 | E31: 550.44 | F31: 399.44 | G31: 474.44 | H31: 606.44 | I31: 455.44 | J31: 474.44
A32: 24 | B32: 131.44 | C32: 399.44 | D32: 455.44 | E32: 550.44 | F32: -0.56 | G32: 474.44 | H32: 606.44 | I32: 55.44 | J32: 474.44
A33: 25 | B33: 1316 | C33: 1184 | D33: 1240 | E33: 550.44 | F33: 399.44 | G33: 474.44 | H33: 606.44 | I33: 455.44 | J33: 474.44
A34: 26 | B34: 362.42 | C34: 230.42 | D34: 286.42 | E34: 550.44 | F34: 399.44 | G34: 474.44 | H34: 437.42 | I34: 286.42 | J34: 305.42
A35: 27 | B35: -74 | C35: 194 | D35: 250 | E35: 550.44 | F35: -0.56 | G35: 474.44 | H35: 1391 | I35: 840 | J35: 1259
A36: 28 | B36: 531.44 | C36: 399.44 | D36: 455.44 | E36: 550.44 | F36: 399.44 | G36: 474.44 | H36: 1391 | I36: 1240 | J36: 1259
A37: 29 | B37: 362.42 | C37: 230.42 | D37: 286.42 | E37: 550.44 | F37: 399.44 | G37: 474.44 | H37: 1391 | I37: 1240 | J37: 1259
A38: 30 | B38: 362.42 | C38: 230.42 | D38: 286.42 | E38: 550.44 | F38: 399.44 | G38: 474.44 | H38: 1391 | I38: 1240 | J38: 1259
A39: 31 | B39: 362.42 | C39: 230.42 | D39: 286.42 | E39: 550.44 | F39: 399.44 | G39: 474.44 | H39: 437.42 | I39: 286.42 | J39: 305.42
A40: 32 | B40: 916 | C40: 1184 | D40: 1240 | E40: 550.44 | F40: -0.56 | G40: 474.44 | H40: 1391 | I40: 840 | J40: 1259
A41: 33 | B41: 326 | C41: 194 | D41: 250 | E41: 550.44 | F41: 399.44 | G41: 474.44 | H41: 606.44 | I41: 455.44 | J41: 474.44
A42: 34 | B42: 131.44 | C42: 399.44 | D42: 455.44 | E42: 550.44 | F42: -0.56 | G42: 474.44 | H42: 606.44 | I42: 55.44 | J42: 474.44
A43: 35 | B43: 131.44 | C43: 399.44 | D43: 455.44 | E43: 550.44 | F43: -0.56 | G43: 474.44 | H43: 606.44 | I43: 55.44 | J43: 474.44
A44: 36 | B44: 1316 | C44: 1184 | D44: 1240 | E44: 550.44 | F44: 399.44 | G44: 474.44 | H44: 1391 | I44: 1240 | J44: 1259
A45: 37 | B45: 131.44 | C45: 399.44 | D45: 455.44 | E45: 550.44 | F45: -0.56 | G45: 474.44 | H45: 1391 | I45: 840 | J45: 1259
A46: 38 | B46: 531.44 | C46: 399.44 | D46: 455.44 | E46: 550.44 | F46: 399.44 | G46: 474.44 | H46: 606.44 | I46: 455.44 | J46: 474.44
A47: 39 | B47: 362.42 | C47: 230.42 | D47: 286.42 | E47: 550.44 | F47: 399.44 | G47: 474.44 | H47: 606.44 | I47: 455.44 | J47: 474.44
A48: 40 | B48: 326 | C48: 194 | D48: 250 | E48: 1335 | F48: 1184 | G48: 1259 | H48: 1391 | I48: 1240 | J48: 1259
A49: 41 | B49: 362.42 | C49: 230.42 | D49: 286.42 | E49: 550.44 | F49: 399.44 | G49: 474.44 | H49: 1391 | I49: 1240 | J49: 1259
A50: 42 | B50: 326 | C50: 194 | D50: 250 | E50: 550.44 | F50: 399.44 | G50: 474.44 | H50: 1391 | I50: 1240 | J50: 1259
A51: 43 | B51: 131.44 | C51: 399.44 | D51: 455.44 | E51: 550.44 | F51: -0.56 | G51: 474.44 | H51: 1391 | I51: 840 | J51: 1259
A52: 44 | B52: 362.42 | C52: 230.42 | D52: 286.42 | E52: 550.44 | F52: 399.44 | G52: 474.44 | H52: 606.44 | I52: 455.44 | J52: 474.44
A53: 45 | B53: 362.42 | C53: 230.42 | D53: 286.42 | E53: 550.44 | F53: 399.44 | G53: 474.44 | H53: 606.44 | I53: 455.44 | J53: 474.44
A54: 46 | B54: 131.44 | C54: 399.44 | D54: 455.44 | E54: 550.44 | F54: -0.56 | G54: 474.44 | H54: 1391 | I54: 840 | J54: 1259
A55: 47 | B55: 326 | C55: 194 | D55: 250 | E55: 550.44 | F55: 399.44 | G55: 474.44 | H55: 606.44 | I55: 455.44 | J55: 474.44
A56: 48 | B56: 531.44 | C56: 399.44 | D56: 455.44 | E56: 550.44 | F56: 399.44 | G56: 474.44 | H56: 606.44 | I56: 455.44 | J56: 474.44
A57: 49 | B57: -37.58 | C57: 230.42 | D57: 286.42 | E57: 550.44 | F57: -0.56 | G57: 474.44 | H57: 1391 | I57: 840 | J57: 1259
A58: 50 | B58: 531.44 | C58: 399.44 | D58: 55.44 | E58: 550.44 | F58: 399.44 | G58: 74.44 | H58: 206.44 | I58: 455.44 | J58: 474.44
A59: 51 | B59: 362.42 | C59: 230.42 | D59: 286.42 | E59: 550.44 | F59: 399.44 | G59: 474.44 | H59: 606.44 | I59: 455.44 | J59: 474.44
A60: 52 | B60: -37.58 | C60: 230.42 | D60: 286.42 | E60: 550.44 | F60: -0.56 | G60: 474.44 | H60: 606.44 | I60: 55.44 | J60: 474.44
A61: 53 | B61: 1316 | C61: 1184 | D61: 1240 | E61: 550.44 | F61: 399.44 | G61: 474.44 | H61: 1391 | I61: 1240 | J61: 1259
A62: 54 | B62: 1316 | C62: 1184 | D62: 1240 | E62: 550.44 | F62: 399.44 | G62: 474.44 | H62: 1391 | I62: 1240 | J62: 1259
A63: 55 | B63: 531.44 | C63: 399.44 | D63: 55.44 | E63: 550.44 | F63: 399.44 | G63: 74.44 | H63: 1 | I63: 250 | J63: 269
A64: 56 | B64: 1316 | C64: 1184 | D64: 1240 | E64: 550.44 | F64: 399.44 | G64: 474.44 | H64: 606.44 | I64: 455.44 | J64: 474.44
A65: 57 | B65: 1316 | C65: 1184 | D65: 1240 | E65: 550.44 | F65: 399.44 | G65: 474.44 | H65: 1391 | I65: 1240 | J65: 1259
A66: 58 | B66: 326 | C66: 194 | D66: 250 | E66: 550.44 | F66: 399.44 | G66: 474.44 | H66: 606.44 | I66: 455.44 | J66: 474.44
A67: 59 | B67: 531.44 | C67: 399.44 | D67: 455.44 | E67: 550.44 | F67: 399.44 | G67: 474.44 | H67: 437.42 | I67: 286.42 | J67: 305.42
A68: 60 | B68: 531.44 | C68: 399.44 | D68: 455.44 | E68: 550.44 | F68: 399.44 | G68: 474.44 | H68: 437.42 | I68: 286.42 | J68: 305.42
A69: 61 | B69: 362.42 | C69: 230.42 | D69: 286.42 | E69: 1335 | F69: 1184 | G69: 1259 | H69: 606.44 | I69: 455.44 | J69: 474.44
A70: 62 | B70: 1316 | C70: 1184 | D70: 840 | E70: 550.44 | F70: 399.44 | G70: 74.44 | H70: 991 | I70: 1240 | J70: 1259
A71: 63 | B71: 362.42 | C71: 230.42 | D71: 286.42 | E71: 550.44 | F71: 399.44 | G71: 474.44 | H71: 606.44 | I71: 455.44 | J71: 474.44
A72: 64 | B72: 531.44 | C72: 399.44 | D72: 455.44 | E72: 550.44 | F72: 399.44 | G72: 474.44 | H72: 1391 | I72: 1240 | J72: 1259
A73: 65 | B73: 326 | C73: 194 | D73: -150 | E73: 550.44 | F73: 399.44 | G73: 74.44 | H73: 991 | I73: 1240 | J73: 1259
A74: =A73+1 -> 66 | B74: 362.42 | C74: 230.42 | D74: 286.42 | E74: 550.44 | F74: 399.44 | G74: 474.44 | H74: 1391 | I74: 1240 | J74: 1259
A75: 67 | B75: 326 | C75: 194 | D75: 250 | E75: 550.44 | F75: 399.44 | G75: 474.44 | H75: 437.42 | I75: 286.42 | J75: 305.42
A76: 68 | B76: 531.44 | C76: 399.44 | D76: 455.44 | E76: 550.44 | F76: 399.44 | G76: 474.44 | H76: 401 | I76: 250 | J76: 269
A77: 69 | B77: 131.44 | C77: 399.44 | D77: 55.44 | E77: 550.44 | F77: -0.56 | G77: 74.44 | H77: 991 | I77: 840 | J77: 1259
A78: 70 | B78: 326 | C78: 194 | D78: -150 | E78: 550.44 | F78: 399.44 | G78: 74.44 | H78: 206.44 | I78: 455.44 | J78: 474.44
A79: 71 | B79: 531.44 | C79: 399.44 | D79: 455.44 | E79: 550.44 | F79: 399.44 | G79: 474.44 | H79: 1391 | I79: 1240 | J79: 1259
A80: 72 | B80: 531.44 | C80: 399.44 | D80: 455.44 | E80: 550.44 | F80: 399.44 | G80: 474.44 | H80: 606.44 | I80: 455.44 | J80: 474.44
A81: 73 | B81: 362.42 | C81: 230.42 | D81: 286.42 | E81: 550.44 | F81: 399.44 | G81: 474.44 | H81: 437.42 | I81: 286.42 | J81: 305.42
A82: 74 | B82: 531.44 | C82: 399.44 | D82: 55.44 | E82: 550.44 | F82: 399.44 | G82: 74.44 | H82: 991 | I82: 1240 | J82: 1259
A83: 75 | B83: 326 | C83: 194 | D83: 250 | E83: 550.44 | F83: 399.44 | G83: 474.44 | H83: 1391 | I83: 1240 | J83: 1259
A84: 76 | B84: 131.44 | C84: 399.44 | D84: 455.44 | E84: 550.44 | F84: -0.56 | G84: 474.44 | H84: 606.44 | I84: 55.44 | J84: 474.44
A85: 77 | B85: -74 | C85: 194 | D85: 250 | E85: 550.44 | F85: -0.56 | G85: 474.44 | H85: 606.44 | I85: 55.44 | J85: 474.44
A86: 78 | B86: 362.42 | C86: 230.42 | D86: 286.42 | E86: 550.44 | F86: 399.44 | G86: 474.44 | H86: 1391 | I86: 1240 | J86: 1259
A87: 79 | B87: 531.44 | C87: 399.44 | D87: 455.44 | E87: 550.44 | F87: 399.44 | G87: 474.44 | H87: 1391 | I87: 1240 | J87: 1259
A88: 80 | B88: 362.42 | C88: 230.42 | D88: 286.42 | E88: 550.44 | F88: 399.44 | G88: 474.44 | H88: 437.42 | I88: 286.42 | J88: 305.42
A89: 81 | B89: 531.44 | C89: 399.44 | D89: 55.44 | E89: 550.44 | F89: 399.44 | G89: 74.44 | H89: 206.44 | I89: 455.44 | J89: 474.44
A90: 82 | B90: 362.42 | C90: 230.42 | D90: 286.42 | E90: 550.44 | F90: 399.44 | G90: 474.44 | H90: 606.44 | I90: 455.44 | J90: 474.44
A91: 83 | B91: 531.44 | C91: 399.44 | D91: 455.44 | E91: 550.44 | F91: 399.44 | G91: 474.44 | H91: 437.42 | I91: 286.42 | J91: 305.42
A92: 84 | B92: 531.44 | C92: 399.44 | D92: 455.44 | E92: 550.44 | F92: 399.44 | G92: 474.44 | H92: 606.44 | I92: 455.44 | J92: 474.44
A93: 85 | B93: 362.42 | C93: 230.42 | D93: 286.42 | E93: 550.44 | F93: 399.44 | G93: 474.44 | H93: 606.44 | I93: 455.44 | J93: 474.44
A94: 86 | B94: 362.42 | C94: 230.42 | D94: 286.42 | E94: 550.44 | F94: 399.44 | G94: 474.44 | H94: 1391 | I94: 1240 | J94: 1259
A95: 87 | B95: 531.44 | C95: 399.44 | D95: 455.44 | E95: 550.44 | F95: 399.44 | G95: 474.44 | H95: 437.42 | I95: 286.42 | J95: 305.42
A96: 88 | B96: 326 | C96: 194 | D96: 250 | E96: 550.44 | F96: 399.44 | G96: 474.44 | H96: 606.44 | I96: 455.44 | J96: 474.44
A97: 89 | B97: 362.42 | C97: 230.42 | D97: 286.42 | E97: 550.44 | F97: 399.44 | G97: 474.44 | H97: 437.42 | I97: 286.42 | J97: 305.42
A98: 90 | B98: 362.42 | C98: 230.42 | D98: -113.58 | E98: 550.44 | F98: 399.44 | G98: 74.44 | H98: 37.42 | I98: 286.42 | J98: 305.42
A99: 91 | B99: 362.42 | C99: 230.42 | D99: 286.42 | E99: 550.44 | F99: 399.44 | G99: 474.44 | H99: 1391 | I99: 1240 | J99: 1259
A100: 92 | B100: 362.42 | C100: 230.42 | D100: 286.42 | E100: 550.44 | F100: 399.44 | G100: 474.44 | H100: 606.44 | I100: 455.44 | J100: 474.44
A101: 93 | B101: 816 | C101: 1184 | D101: 840 | E101: 550.44 | F101: -100.56 | G101: 74.44 | H101: 1 | I101: -250 | J101: 269
A102: 94 | B102: 362.42 | C102: 230.42 | D102: 286.42 | E102: 550.44 | F102: 399.44 | G102: 474.44 | H102: 606.44 | I102: 455.44 | J102: 474.44
A103: 95 | B103: 531.44 | C103: 399.44 | D103: 455.44 | E103: 550.44 | F103: 399.44 | G103: 474.44 | H103: 606.44 | I103: 455.44 | J103: 474.44
A104: 96 | B104: 326 | C104: 194 | D104: 250 | E104: 550.44 | F104: 399.44 | G104: 474.44 | H104: 1391 | I104: 1240 | J104: 1259
A105: 97 | B105: -37.58 | C105: 230.42 | D105: 286.42 | E105: 550.44 | F105: -0.56 | G105: 474.44 | H105: 606.44 | I105: 55.44 | J105: 474.44
A106: 98 | B106: 326 | C106: 194 | D106: 250 | E106: 550.44 | F106: 399.44 | G106: 474.44 | H106: 1391 | I106: 1240 | J106: 1259
A107: 99 | B107: 531.44 | C107: 399.44 | D107: 455.44 | E107: 550.44 | F107: 399.44 | G107: 474.44 | H107: 606.44 | I107: 455.44 | J107: 474.44
A108: 100 | B108: 531.44 | C108: 399.44 | D108: 455.44 | E108: 550.44 | F108: 399.44 | G108: 474.44 | H108: 1391 | I108: 1240 | J108: 1259
A109: 101
A110: 102
A111: 103
A112: 104
A113: 105
A114: 106
A115: 107
A116: 108
A117: 109
A118: 110
A119: 111
A120: 112
A121: 113
A122: 114
A123: 115
A124: 116
A125: 117
A126: 118
A127: 119
A128: 120
A129: 121
A130: 122
A131: 123
A132: 124
A133: 125
A134: 126
A135: 127
A136: 128
A137: 129
A138: =A137+1 -> 130
A139: 131
A140: 132
A141: 133
A142: 134
A143: 135
A144: 136
A145: 137
A146: 138
A147: 139
A148: 140
A149: 141
A150: 142
A151: 143
A152: 144
A153: 145
A154: 146
A155: 147
A156: 148
A157: 149
A158: 150
A159: 151
A160: 152
A161: 153
A162: 154
A163: 155
A164: 156
A165: 157
A166: 158
A167: 159
A168: 160
A169: 161
A170: 162
A171: 163
A172: 164
A173: 165
A174: 166
A175: 167
A176: 168
A177: 169
A178: 170
A179: 171
A180: 172
A181: 173
A182: 174
A183: 175
A184: 176
A185: 177
A186: 178
A187: 179
A188: 180
A189: 181
A190: 182
A191: 183
A192: 184
A193: 185
A194: 186
A195: 187
A196: 188
A197: 189
A198: 190
A199: 191
A200: 192
A201: 193
A202: =A201+1 -> 194
... 806 more rows

Sheet MAX PROFIT TREE
A1: 100 | B1: Number of Samples
C2: =_xll.PTreeNodeDecision(treeCalc_4!$F$2,2) -> FALSE | D2: =_xll.PTreeNodeProbability(treeCalc_4!$F$2,2) -> 0
C3: =PROFIT!B4 -> 427.0314 | D3: =_xll.PTreeNodeValue(treeCalc_4!$F$2,2) -> 427.0314
C4: Decision
C5: =_xll.PTreeNodeValue(treeCalc_4!$F$2,1) -> 796.4492
C6: =_xll.PTreeNodeDecision(treeCalc_4!$F$2,3) -> FALSE | D6: =_xll.PTreeNodeProbability(treeCalc_4!$F$2,3) -> 0
C7: =PROFIT!C4 -> 381.0314 | D7: =_xll.PTreeNodeValue(treeCalc_4!$F$2,3) -> 381.0314
C8: =_xll.PTreeNodeDecision(treeCalc_4!$F$2,4) -> FALSE | D8: =_xll.PTreeNodeProbability(treeCalc_4!$F$2,4) -> 0
C9: =PROFIT!D4 -> 389.0314 | D9: =_xll.PTreeNodeValue(treeCalc_4!$F$2,4) -> 389.0314
C10: =_xll.PTreeNodeDecision(treeCalc_4!$F$2,5) -> FALSE | D10: =_xll.PTreeNodeProbability(treeCalc_4!$F$2,5) -> 0
C11: =PROFIT!E4 -> 566.1312 | D11: =_xll.PTreeNodeValue(treeCalc_4!$F$2,5) -> 566.1312
C12: =_xll.PTreeNodeDecision(treeCalc_4!$F$2,6) -> FALSE | D12: =_xll.PTreeNodeProbability(treeCalc_4!$F$2,6) -> 0
C13: =PROFIT!F4 -> 329.1312 | D13: =_xll.PTreeNodeValue(treeCalc_4!$F$2,6) -> 329.1312
C14: =_xll.PTreeNodeDecision(treeCalc_4!$F$2,7) -> FALSE | D14: =_xll.PTreeNodeProbability(treeCalc_4!$F$2,7) -> 0
C15: =PROFIT!G4 -> 442.1312 | D15: =_xll.PTreeNodeValue(treeCalc_4!$F$2,7) -> 442.1312
C16: =_xll.PTreeNodeDecision(treeCalc_4!$F$2,8) -> TRUE | D16: =_xll.PTreeNodeProbability(treeCalc_4!$F$2,8) -> 1
C17: =PROFIT!H4 -> 796.4492 | D17: =_xll.PTreeNodeValue(treeCalc_4!$F$2,8) -> 796.4492
C18: =_xll.PTreeNodeDecision(treeCalc_4!$F$2,9) -> FALSE | D18: =_xll.PTreeNodeProbability(treeCalc_4!$F$2,9) -> 0
C19: =PROFIT!I4 -> 607.4492 | D19: =_xll.PTreeNodeValue(treeCalc_4!$F$2,9) -> 607.4492
C20: =_xll.PTreeNodeDecision(treeCalc_4!$F$2,10) -> FALSE | D20: =_xll.PTreeNodeProbability(treeCalc_4!$F$2,10) -> 0
C21: =PROFIT!J4 -> 712.4492 | D21: =_xll.PTreeNodeValue(treeCalc_4!$F$2,10) -> 712.4492

Sheet MAX REWARD TREE
A1: 100
C2: =_xll.PTreeNodeDecision(treeCalc_2!$F$2,2) -> FALSE | D2: =_xll.PTreeNodeProbability(treeCalc_2!$F$2,2) -> 0
C3: =REWARD!B4 -> 611.0314 | D3: =_xll.PTreeNodeValue(treeCalc_2!$F$2,2) -> 611.0314
C4: Decision
C5: =_xll.PTreeNodeValue(treeCalc_2!$F$2,1) -> 953.4492
C6: =_xll.PTreeNodeDecision(treeCalc_2!$F$2,3) -> FALSE | D6: =_xll.PTreeNodeProbability(treeCalc_2!$F$2,3) -> 0
C7: =REWARD!C4 -> 697.0314 | D7: =_xll.PTreeNodeValue(treeCalc_2!$F$2,3) -> 697.0314
C8: =_xll.PTreeNodeDecision(treeCalc_2!$F$2,4) -> FALSE | D8: =_xll.PTreeNodeProbability(treeCalc_2!$F$2,4) -> 0
C9: =REWARD!D4 -> 649.0314 | D9: =_xll.PTreeNodeValue(treeCalc_2!$F$2,4) -> 649.0314
C10: =_xll.PTreeNodeDecision(treeCalc_2!$F$2,5) -> FALSE | D10: =_xll.PTreeNodeProbability(treeCalc_2!$F$2,5) -> 0
C11: =REWARD!E4 -> 731.1312 | D11: =_xll.PTreeNodeValue(treeCalc_2!$F$2,5) -> 731.1312
C12: =_xll.PTreeNodeDecision(treeCalc_2!$F$2,6) -> FALSE | D12: =_xll.PTreeNodeProbability(treeCalc_2!$F$2,6) -> 0
C13: =REWARD!F4 -> 645.1312 | D13: =_xll.PTreeNodeValue(treeCalc_2!$F$2,6) -> 645.1312
C14: =_xll.PTreeNodeDecision(treeCalc_2!$F$2,7) -> FALSE | D14: =_xll.PTreeNodeProbability(treeCalc_2!$F$2,7) -> 0
C15: =REWARD!G4 -> 683.1312 | D15: =_xll.PTreeNodeValue(treeCalc_2!$F$2,7) -> 683.1312
C16: =_xll.PTreeNodeDecision(treeCalc_2!$F$2,8) -> FALSE | D16: =_xll.PTreeNodeProbability(treeCalc_2!$F$2,8) -> 0
C17: =REWARD!H4 -> 905.4492 | D17: =_xll.PTreeNodeValue(treeCalc_2!$F$2,8) -> 905.4492
C18: =_xll.PTreeNodeDecision(treeCalc_2!$F$2,9) -> FALSE | D18: =_xll.PTreeNodeProbability(treeCalc_2!$F$2,9) -> 0
C19: =REWARD!I4 -> 867.4492 | D19: =_xll.PTreeNodeValue(treeCalc_2!$F$2,9) -> 867.4492
C20: =_xll.PTreeNodeDecision(treeCalc_2!$F$2,10) -> TRUE | D20: =_xll.PTreeNodeProbability(treeCalc_2!$F$2,10) -> 1
C21: =REWARD!J4 -> 953.4492 | D21: =_xll.PTreeNodeValue(treeCalc_2!$F$2,10) -> 953.4492

Sheet MIN COST TREE
A1: 100
C2: =_xll.PTreeNodeDecision(treeCalc_1!$F$2,2) -> FALSE | D2: =_xll.PTreeNodeProbability(treeCalc_1!$F$2,2) -> 0
C3: =COST!B4 -> 151 | D3: =_xll.PTreeNodeValue(treeCalc_1!$F$2,2) -> 151
C4: Decision
C5: =_xll.PTreeNodeValue(treeCalc_1!$F$2,1) -> 76
C6: =_xll.PTreeNodeDecision(treeCalc_1!$F$2,3) -> FALSE | D6: =_xll.PTreeNodeProbability(treeCalc_1!$F$2,3) -> 0
C7: =COST!C4 -> 283 | D7: =_xll.PTreeNodeValue(treeCalc_1!$F$2,3) -> 283
C8: =_xll.PTreeNodeDecision(treeCalc_1!$F$2,4) -> FALSE | D8: =_xll.PTreeNodeProbability(treeCalc_1!$F$2,4) -> 0
C9: =COST!D4 -> 227 | D9: =_xll.PTreeNodeValue(treeCalc_1!$F$2,4) -> 227
C10: =_xll.PTreeNodeDecision(treeCalc_1!$F$2,5) -> FALSE | D10: =_xll.PTreeNodeProbability(treeCalc_1!$F$2,5) -> 0
C11: =COST!E4 -> 132 | D11: =_xll.PTreeNodeValue(treeCalc_1!$F$2,5) -> 132
C12: =_xll.PTreeNodeDecision(treeCalc_1!$F$2,6) -> FALSE | D12: =_xll.PTreeNodeProbability(treeCalc_1!$F$2,6) -> 0
C13: =COST!F4 -> 283 | D13: =_xll.PTreeNodeValue(treeCalc_1!$F$2,6) -> 283
C14: =_xll.PTreeNodeDecision(treeCalc_1!$F$2,7) -> FALSE | D14: =_xll.PTreeNodeProbability(treeCalc_1!$F$2,7) -> 0
C15: =COST!G4 -> 208 | D15: =_xll.PTreeNodeValue(treeCalc_1!$F$2,7) -> 208
C16: =_xll.PTreeNodeDecision(treeCalc_1!$F$2,8) -> TRUE | D16: =_xll.PTreeNodeProbability(treeCalc_1!$F$2,8) -> 1
C17: =COST!H4 -> 76 | D17: =_xll.PTreeNodeValue(treeCalc_1!$F$2,8) -> 76
C18: =_xll.PTreeNodeDecision(treeCalc_1!$F$2,9) -> FALSE | D18: =_xll.PTreeNodeProbability(treeCalc_1!$F$2,9) -> 0
C19: =COST!I4 -> 227 | D19: =_xll.PTreeNodeValue(treeCalc_1!$F$2,9) -> 227
C20: =_xll.PTreeNodeDecision(treeCalc_1!$F$2,10) -> FALSE | D20: =_xll.PTreeNodeProbability(treeCalc_1!$F$2,10) -> 0
C21: =COST!J4 -> 208 | D21: =_xll.PTreeNodeValue(treeCalc_1!$F$2,10) -> 208

Sheet treeCalc_3 (hidden)
A1: Name | B1: MIN RISK REWARD TREE | E1: Ptree1 Compatibility | F1: 3 | H1: Output Label | K1: R-Value Ref. | L1: 100
A2: SheetRef | B2: ='MIN RISK REWARD TREE'!#REF! ->  | E2: Eval. Function | F2: =_xll.PTreeEvaluate5(B3,$L$11:$L$20,$J$11:$J$20,$K$11:$K$20,$N$11:$N$20,$G$11:$G$20,,L1) -> 154779651
A3: GenInfo | B3: 0,3,1,0,0,Exponential, 0,0,0,0,-1,-1,.0001 | E3: Creation Version | F3: 6.3.0 | H3: Output Value NF | I3: <NF>
A4: Def. Link | B4: = | E4: Required Version | F4: 5.0.0 | H4: Output Prob NF | I4: Automatic
A5: EXT REFS | B5: 0 | D5: 0 | E5: Recommended Version | F5: 5.0.0 | H5: Input Value NF | I5: <NF>
A6: Def. Form | E6: Last Modified By Version | F6: 8.2.0 | H6: Input Prob NF | I6: Automatic
A7: Calc Macro | F7: 31ACD247
A8: Highest# | B8: 10
A10: Anchor Cell | B10: Branch Name | C10: bformtype | D10: valformula | E10: pbformula | F10: distribution | G10: cumPayoffFunction | H10: link | I10: ENDNODEFORMULA | J10: VAL | K10: PB | L10: GenInfo | M10: IntRefs | N10: RefRefs | O10: NodeNames | P10: Collapsed
A11: ='MIN RISK REWARD TREE'!$C$5 -> 110.3917456 | B11: =B1 -> MIN RISK REWARD TREE | C11: 0 | I11: DEFAULT | J11: ='MIN RISK REWARD TREE'!$B$5 -> 0 | K11: ='MIN RISK REWARD TREE'!$B$4 -> 0 | L11: 2,0,0,9,2,3,4,5,6,7,8,9,10,0,0,0 | M11: 0 | O11: ='MIN RISK REWARD TREE'!$C$4 -> Decision | P11: FALSE
A12: ='MIN RISK REWARD TREE'!$D$3 -> 313.3319201 | B12: ALTERNATIVE 1 | C12: 0 | H12: DEFAULT | I12: DEFAULT | J12: ='MIN RISK REWARD TREE'!$C$3 -> 313.3319201 | L12: 4,0,0,0,1,0,0 | M12: 0 | P12: FALSE
A13: ='MIN RISK REWARD TREE'!$D$7 -> 282.6337932 | B13: ALTERNATIVE 2 | C13: 0 | H13: DEFAULT | I13: DEFAULT | J13: ='MIN RISK REWARD TREE'!$C$7 -> 282.6337932 | L13: 4,0,0,0,1,0,0 | M13: 0 | P13: FALSE
A14: ='MIN RISK REWARD TREE'!$D$9 -> 300.3259792 | B14: ALTERNATIVE 3 | C14: 0 | H14: DEFAULT | I14: DEFAULT | J14: ='MIN RISK REWARD TREE'!$C$9 -> 300.3259792 | L14: 4,0,0,0,1,0,0 | M14: 0 | P14: FALSE
A15: ='MIN RISK REWARD TREE'!$D$11 -> 110.3917456 | B15: ALTERNATIVE 4 | C15: 0 | H15: DEFAULT | I15: DEFAULT | J15: ='MIN RISK REWARD TREE'!$C$11 -> 110.3917456 | L15: 4,0,0,0,1,0,0 | M15: 0 | P15: FALSE
A16: ='MIN RISK REWARD TREE'!$D$13 -> 207.844543 | B16: ALTERNATIVE 5 | C16: 0 | H16: DEFAULT | I16: DEFAULT | J16: ='MIN RISK REWARD TREE'!$C$13 -> 207.844543 | L16: 4,0,0,0,1,0,0 | M16: 0 | P16: FALSE
A17: ='MIN RISK REWARD TREE'!$D$15 -> 175.4268368 | B17: ALTERNATIVE 6 | C17: 0 | H17: DEFAULT | I17: DEFAULT | J17: ='MIN RISK REWARD TREE'!$C$15 -> 175.4268368 | L17: 4,0,0,0,1,0,0 | M17: 0 | P17: FALSE
A18: ='MIN RISK REWARD TREE'!$D$17 -> 424.2625287 | B18: ALTERNATIVE 7 | C18: 0 | H18: DEFAULT | I18: DEFAULT | J18: ='MIN RISK REWARD TREE'!$C$17 -> 424.2625287 | L18: 4,0,0,0,1,0,0 | M18: 0 | P18: FALSE
A19: ='MIN RISK REWARD TREE'!$D$19 -> 435.3929672 | B19: ALTERNATIVE 8 | C19: 0 | H19: DEFAULT | I19: DEFAULT | J19: ='MIN RISK REWARD TREE'!$C$19 -> 435.3929672 | L19: 4,0,0,0,1,0,0 | M19: 0 | P19: FALSE
A20: ='MIN RISK REWARD TREE'!$D$21 -> 408.4919582 | B20: ALTERNATIVE 9 | C20: 0 | H20: DEFAULT | I20: DEFAULT | J20: ='MIN RISK REWARD TREE'!$C$21 -> 408.4919582 | L20: 4,0,0,0,1,0,0 | M20: 0 | P20: FALSE

Sheet MIN RISK PROFIT TREE
A1: 100
C2: =_xll.PTreeNodeDecision(treeCalc_5!$F$2,2) -> FALSE | D2: =_xll.PTreeNodeProbability(treeCalc_5!$F$2,2) -> 0
C3: =PROFIT!B5 -> 313.3319201 | D3: =_xll.PTreeNodeValue(treeCalc_5!$F$2,2) -> 313.3319201
C4: Decision
C5: =_xll.PTreeNodeValue(treeCalc_5!$F$2,1) -> 110.3917456
C6: =_xll.PTreeNodeDecision(treeCalc_5!$F$2,3) -> FALSE | D6: =_xll.PTreeNodeProbability(treeCalc_5!$F$2,3) -> 0
C7: =PROFIT!C5 -> 282.6337932 | D7: =_xll.PTreeNodeValue(treeCalc_5!$F$2,3) -> 282.6337932
C8: =_xll.PTreeNodeDecision(treeCalc_5!$F$2,4) -> FALSE | D8: =_xll.PTreeNodeProbability(treeCalc_5!$F$2,4) -> 0
C9: =PROFIT!D5 -> 300.3259792 | D9: =_xll.PTreeNodeValue(treeCalc_5!$F$2,4) -> 300.3259792
C10: =_xll.PTreeNodeDecision(treeCalc_5!$F$2,5) -> TRUE | D10: =_xll.PTreeNodeProbability(treeCalc_5!$F$2,5) -> 1
C11: =PROFIT!E5 -> 110.3917456 | D11: =_xll.PTreeNodeValue(treeCalc_5!$F$2,5) -> 110.3917456
C12: =_xll.PTreeNodeDecision(treeCalc_5!$F$2,6) -> FALSE | D12: =_xll.PTreeNodeProbability(treeCalc_5!$F$2,6) -> 0
C13: =PROFIT!F5 -> 207.844543 | D13: =_xll.PTreeNodeValue(treeCalc_5!$F$2,6) -> 207.844543
C14: =_xll.PTreeNodeDecision(treeCalc_5!$F$2,7) -> FALSE | D14: =_xll.PTreeNodeProbability(treeCalc_5!$F$2,7) -> 0
C15: =PROFIT!G5 -> 175.4268368 | D15: =_xll.PTreeNodeValue(treeCalc_5!$F$2,7) -> 175.4268368
C16: =_xll.PTreeNodeDecision(treeCalc_5!$F$2,8) -> FALSE | D16: =_xll.PTreeNodeProbability(treeCalc_5!$F$2,8) -> 0
C17: =PROFIT!H5 -> 424.2625287 | D17: =_xll.PTreeNodeValue(treeCalc_5!$F$2,8) -> 424.2625287
C18: =_xll.PTreeNodeDecision(treeCalc_5!$F$2,9) -> FALSE | D18: =_xll.PTreeNodeProbability(treeCalc_5!$F$2,9) -> 0
C19: =PROFIT!I5 -> 435.3929672 | D19: =_xll.PTreeNodeValue(treeCalc_5!$F$2,9) -> 435.3929672
C20: =_xll.PTreeNodeDecision(treeCalc_5!$F$2,10) -> FALSE | D20: =_xll.PTreeNodeProbability(treeCalc_5!$F$2,10) -> 0
C21: =PROFIT!J5 -> 408.4919582 | D21: =_xll.PTreeNodeValue(treeCalc_5!$F$2,10) -> 408.4919582

Sheet MIN RISK REWARD TREE
A1: 100
C2: =_xll.PTreeNodeDecision(treeCalc_3!$F$2,2) -> FALSE | D2: =_xll.PTreeNodeProbability(treeCalc_3!$F$2,2) -> 0
C3: =REWARD!B5 -> 313.3319201 | D3: =_xll.PTreeNodeValue(treeCalc_3!$F$2,2) -> 313.3319201
C4: Decision
C5: =_xll.PTreeNodeValue(treeCalc_3!$F$2,1) -> 110.3917456
C6: =_xll.PTreeNodeDecision(treeCalc_3!$F$2,3) -> FALSE | D6: =_xll.PTreeNodeProbability(treeCalc_3!$F$2,3) -> 0
C7: =REWARD!C5 -> 282.6337932 | D7: =_xll.PTreeNodeValue(treeCalc_3!$F$2,3) -> 282.6337932
C8: =_xll.PTreeNodeDecision(treeCalc_3!$F$2,4) -> FALSE | D8: =_xll.PTreeNodeProbability(treeCalc_3!$F$2,4) -> 0
C9: =REWARD!D5 -> 300.3259792 | D9: =_xll.PTreeNodeValue(treeCalc_3!$F$2,4) -> 300.3259792
C10: =_xll.PTreeNodeDecision(treeCalc_3!$F$2,5) -> TRUE | D10: =_xll.PTreeNodeProbability(treeCalc_3!$F$2,5) -> 1
C11: =REWARD!E5 -> 110.3917456 | D11: =_xll.PTreeNodeValue(treeCalc_3!$F$2,5) -> 110.3917456
C12: =_xll.PTreeNodeDecision(treeCalc_3!$F$2,6) -> FALSE | D12: =_xll.PTreeNodeProbability(treeCalc_3!$F$2,6) -> 0
C13: =REWARD!F5 -> 207.844543 | D13: =_xll.PTreeNodeValue(treeCalc_3!$F$2,6) -> 207.844543
C14: =_xll.PTreeNodeDecision(treeCalc_3!$F$2,7) -> FALSE | D14: =_xll.PTreeNodeProbability(treeCalc_3!$F$2,7) -> 0
C15: =REWARD!G5 -> 175.4268368 | D15: =_xll.PTreeNodeValue(treeCalc_3!$F$2,7) -> 175.4268368
C16: =_xll.PTreeNodeDecision(treeCalc_3!$F$2,8) -> FALSE | D16: =_xll.PTreeNodeProbability(treeCalc_3!$F$2,8) -> 0
C17: =REWARD!H5 -> 424.2625287 | D17: =_xll.PTreeNodeValue(treeCalc_3!$F$2,8) -> 424.2625287
C18: =_xll.PTreeNodeDecision(treeCalc_3!$F$2,9) -> FALSE | D18: =_xll.PTreeNodeProbability(treeCalc_3!$F$2,9) -> 0
C19: =REWARD!I5 -> 435.3929672 | D19: =_xll.PTreeNodeValue(treeCalc_3!$F$2,9) -> 435.3929672
C20: =_xll.PTreeNodeDecision(treeCalc_3!$F$2,10) -> FALSE | D20: =_xll.PTreeNodeProbability(treeCalc_3!$F$2,10) -> 0
C21: =REWARD!J5 -> 408.4919582 | D21: =_xll.PTreeNodeValue(treeCalc_3!$F$2,10) -> 408.4919582

Sheet treeCalc_4 (hidden)
A1: Name | B1: MAX PROFIT TREE | E1: Ptree1 Compatibility | F1: 3 | H1: Output Label | K1: R-Value Ref. | L1: 100
A2: SheetRef | B2: ='MAX PROFIT TREE'!#REF! ->  | E2: Eval. Function | F2: =_xll.PTreeEvaluate5(B3,$L$11:$L$20,$J$11:$J$20,$K$11:$K$20,$N$11:$N$20,$G$11:$G$20,,L1) -> 154753924
A3: GenInfo | B3: 0,4,1,0,0,Exponential, 0,0,-1,0,-1,-1,.0001 | E3: Creation Version | F3: 6.3.0 | H3: Output Value NF | I3: <NF>
A4: Def. Link | B4: = | E4: Required Version | F4: 5.0.0 | H4: Output Prob NF | I4: Automatic
A5: EXT REFS | B5: 0 | D5: 0 | E5: Recommended Version | F5: 5.0.0 | H5: Input Value NF | I5: <NF>
A6: Def. Form | E6: Last Modified By Version | F6: 8.2.0 | H6: Input Prob NF | I6: Automatic
A7: Calc Macro | F7: FA1D6AA
A8: Highest# | B8: 10
A10: Anchor Cell | B10: Branch Name | C10: bformtype | D10: valformula | E10: pbformula | F10: distribution | G10: cumPayoffFunction | H10: link | I10: ENDNODEFORMULA | J10: VAL | K10: PB | L10: GenInfo | M10: IntRefs | N10: RefRefs | O10: NodeNames | P10: Collapsed
A11: ='MAX PROFIT TREE'!$C$5 -> 796.4492 | B11: =B1 -> MAX PROFIT TREE | C11: 0 | I11: DEFAULT | J11: ='MAX PROFIT TREE'!$B$5 -> 0 | K11: ='MAX PROFIT TREE'!$B$4 -> 0 | L11: 2,0,0,9,2,3,4,5,6,7,8,9,10,0,0,0 | M11: 0 | O11: ='MAX PROFIT TREE'!$C$4 -> Decision | P11: FALSE
A12: ='MAX PROFIT TREE'!$D$3 -> 427.0314 | B12: ALTERNATIVE 1 | C12: 0 | H12: DEFAULT | I12: DEFAULT | J12: ='MAX PROFIT TREE'!$C$3 -> 427.0314 | L12: 4,0,0,0,1,0,0 | M12: 0 | P12: FALSE
A13: ='MAX PROFIT TREE'!$D$7 -> 381.0314 | B13: ALTERNATIVE 2 | C13: 0 | H13: DEFAULT | I13: DEFAULT | J13: ='MAX PROFIT TREE'!$C$7 -> 381.0314 | L13: 4,0,0,0,1,0,0 | M13: 0 | P13: FALSE
A14: ='MAX PROFIT TREE'!$D$9 -> 389.0314 | B14: ALTERNATIVE 3 | C14: 0 | H14: DEFAULT | I14: DEFAULT | J14: ='MAX PROFIT TREE'!$C$9 -> 389.0314 | L14: 4,0,0,0,1,0,0 | M14: 0 | P14: FALSE
A15: ='MAX PROFIT TREE'!$D$11 -> 566.1312 | B15: ALTERNATIVE 4 | C15: 0 | H15: DEFAULT | I15: DEFAULT | J15: ='MAX PROFIT TREE'!$C$11 -> 566.1312 | L15: 4,0,0,0,1,0,0 | M15: 0 | P15: FALSE
A16: ='MAX PROFIT TREE'!$D$13 -> 329.1312 | B16: ALTERNATIVE 5 | C16: 0 | H16: DEFAULT | I16: DEFAULT | J16: ='MAX PROFIT TREE'!$C$13 -> 329.1312 | L16: 4,0,0,0,1,0,0 | M16: 0 | P16: FALSE
A17: ='MAX PROFIT TREE'!$D$15 -> 442.1312 | B17: ALTERNATIVE 6 | C17: 0 | H17: DEFAULT | I17: DEFAULT | J17: ='MAX PROFIT TREE'!$C$15 -> 442.1312 | L17: 4,0,0,0,1,0,0 | M17: 0 | P17: FALSE
A18: ='MAX PROFIT TREE'!$D$17 -> 796.4492 | B18: ALTERNATIVE 7 | C18: 0 | H18: DEFAULT | I18: DEFAULT | J18: ='MAX PROFIT TREE'!$C$17 -> 796.4492 | L18: 4,0,0,0,1,0,0 | M18: 0 | P18: FALSE
A19: ='MAX PROFIT TREE'!$D$19 -> 607.4492 | B19: ALTERNATIVE 8 | C19: 0 | H19: DEFAULT | I19: DEFAULT | J19: ='MAX PROFIT TREE'!$C$19 -> 607.4492 | L19: 4,0,0,0,1,0,0 | M19: 0 | P19: FALSE
A20: ='MAX PROFIT TREE'!$D$21 -> 712.4492 | B20: ALTERNATIVE 9 | C20: 0 | H20: DEFAULT | I20: DEFAULT | J20: ='MAX PROFIT TREE'!$C$21 -> 712.4492 | L20: 4,0,0,0,1,0,0 | M20: 0 | P20: FALSE

Sheet treeCalc_5 (hidden)
A1: Name | B1: MIN RISK PROFIT TREE | E1: Ptree1 Compatibility | F1: 3 | H1: Output Label | K1: R-Value Ref. | L1: 100
A2: SheetRef | B2: ='MIN RISK PROFIT TREE'!#REF! ->  | E2: Eval. Function | F2: =_xll.PTreeEvaluate5(B3,$L$11:$L$20,$J$11:$J$20,$K$11:$K$20,$N$11:$N$20,$G$11:$G$20,,L1) -> 154728197
A3: GenInfo | B3: 0,5,1,0,0,Exponential, 0,0,0,0,-1,-1,.0001 | E3: Creation Version | F3: 6.3.0 | H3: Output Value NF | I3: <NF>
A4: Def. Link | B4: = | E4: Required Version | F4: 5.0.0 | H4: Output Prob NF | I4: Automatic
A5: EXT REFS | B5: 0 | D5: 0 | E5: Recommended Version | F5: 5.0.0 | H5: Input Value NF | I5: <NF>
A6: Def. Form | E6: Last Modified By Version | F6: 8.2.0 | H6: Input Prob NF | I6: Automatic
A7: Calc Macro | F7: AC58584
A8: Highest# | B8: 10
A10: Anchor Cell | B10: Branch Name | C10: bformtype | D10: valformula | E10: pbformula | F10: distribution | G10: cumPayoffFunction | H10: link | I10: ENDNODEFORMULA | J10: VAL | K10: PB | L10: GenInfo | M10: IntRefs | N10: RefRefs | O10: NodeNames | P10: Collapsed
A11: ='MIN RISK PROFIT TREE'!$C$5 -> 110.3917456 | B11: =B1 -> MIN RISK PROFIT TREE | C11: 0 | I11: DEFAULT | J11: ='MIN RISK PROFIT TREE'!$B$5 -> 0 | K11: ='MIN RISK PROFIT TREE'!$B$4 -> 0 | L11: 2,0,0,9,2,3,4,5,6,7,8,9,10,0,0,0 | M11: 0 | O11: ='MIN RISK PROFIT TREE'!$C$4 -> Decision | P11: FALSE
A12: ='MIN RISK PROFIT TREE'!$D$3 -> 313.3319201 | B12: ALTERNATIVE 1 | C12: 0 | H12: DEFAULT | I12: DEFAULT | J12: ='MIN RISK PROFIT TREE'!$C$3 -> 313.3319201 | L12: 4,0,0,0,1,0,0 | M12: 0 | P12: FALSE
A13: ='MIN RISK PROFIT TREE'!$D$7 -> 282.6337932 | B13: ALTERNATIVE 2 | C13: 0 | H13: DEFAULT | I13: DEFAULT | J13: ='MIN RISK PROFIT TREE'!$C$7 -> 282.6337932 | L13: 4,0,0,0,1,0,0 | M13: 0 | P13: FALSE
A14: ='MIN RISK PROFIT TREE'!$D$9 -> 300.3259792 | B14: ALTERNATIVE 3 | C14: 0 | H14: DEFAULT | I14: DEFAULT | J14: ='MIN RISK PROFIT TREE'!$C$9 -> 300.3259792 | L14: 4,0,0,0,1,0,0 | M14: 0 | P14: FALSE
A15: ='MIN RISK PROFIT TREE'!$D$11 -> 110.3917456 | B15: ALTERNATIVE 4 | C15: 0 | H15: DEFAULT | I15: DEFAULT | J15: ='MIN RISK PROFIT TREE'!$C$11 -> 110.3917456 | L15: 4,0,0,0,1,0,0 | M15: 0 | P15: FALSE
A16: ='MIN RISK PROFIT TREE'!$D$13 -> 207.844543 | B16: ALTERNATIVE 5 | C16: 0 | H16: DEFAULT | I16: DEFAULT | J16: ='MIN RISK PROFIT TREE'!$C$13 -> 207.844543 | L16: 4,0,0,0,1,0,0 | M16: 0 | P16: FALSE
A17: ='MIN RISK PROFIT TREE'!$D$15 -> 175.4268368 | B17: ALTERNATIVE 6 | C17: 0 | H17: DEFAULT | I17: DEFAULT | J17: ='MIN RISK PROFIT TREE'!$C$15 -> 175.4268368 | L17: 4,0,0,0,1,0,0 | M17: 0 | P17: FALSE
A18: ='MIN RISK PROFIT TREE'!$D$17 -> 424.2625287 | B18: ALTERNATIVE 7 | C18: 0 | H18: DEFAULT | I18: DEFAULT | J18: ='MIN RISK PROFIT TREE'!$C$17 -> 424.2625287 | L18: 4,0,0,0,1,0,0 | M18: 0 | P18: FALSE
A19: ='MIN RISK PROFIT TREE'!$D$19 -> 435.3929672 | B19: ALTERNATIVE 8 | C19: 0 | H19: DEFAULT | I19: DEFAULT | J19: ='MIN RISK PROFIT TREE'!$C$19 -> 435.3929672 | L19: 4,0,0,0,1,0,0 | M19: 0 | P19: FALSE
A20: ='MIN RISK PROFIT TREE'!$D$21 -> 408.4919582 | B20: ALTERNATIVE 9 | C20: 0 | H20: DEFAULT | I20: DEFAULT | J20: ='MIN RISK PROFIT TREE'!$C$21 -> 408.4919582 | L20: 4,0,0,0,1,0,0 | M20: 0 | P20: FALSE

Sheet MIN Pr(LOSS)
A1: 100
C2: =_xll.PTreeNodeDecision(treeCalc_6!$F$2,2) -> FALSE | D2: =_xll.PTreeNodeProbability(treeCalc_6!$F$2,2) -> 0
C3: =PROFIT!B6 -> 0.09 | D3: =_xll.PTreeNodeValue(treeCalc_6!$F$2,2) -> 0.09
C4: Decision
C5: =_xll.PTreeNodeValue(treeCalc_6!$F$2,1) -> 0
C6: =_xll.PTreeNodeDecision(treeCalc_6!$F$2,3) -> TRUE | D6: =_xll.PTreeNodeProbability(treeCalc_6!$F$2,3) -> 1
C7: =PROFIT!C6 -> 0 | D7: =_xll.PTreeNodeValue(treeCalc_6!$F$2,3) -> 0
C8: =_xll.PTreeNodeDecision(treeCalc_6!$F$2,4) -> FALSE | D8: =_xll.PTreeNodeProbability(treeCalc_6!$F$2,4) -> 0
C9: =PROFIT!D6 -> 0.05 | D9: =_xll.PTreeNodeValue(treeCalc_6!$F$2,4) -> 0.05
C10: =_xll.PTreeNodeDecision(treeCalc_6!$F$2,5) -> FALSE | D10: =_xll.PTreeNodeProbability(treeCalc_6!$F$2,5) -> 0
C11: =PROFIT!E6 -> 0 | D11: =_xll.PTreeNodeValue(treeCalc_6!$F$2,5) -> 0
C12: =_xll.PTreeNodeDecision(treeCalc_6!$F$2,6) -> FALSE | D12: =_xll.PTreeNodeProbability(treeCalc_6!$F$2,6) -> 0
C13: =PROFIT!F6 -> 0.21 | D13: =_xll.PTreeNodeValue(treeCalc_6!$F$2,6) -> 0.21
C14: =_xll.PTreeNodeDecision(treeCalc_6!$F$2,7) -> FALSE | D14: =_xll.PTreeNodeProbability(treeCalc_6!$F$2,7) -> 0
C15: =PROFIT!G6 -> 0 | D15: =_xll.PTreeNodeValue(treeCalc_6!$F$2,7) -> 0
C16: =_xll.PTreeNodeDecision(treeCalc_6!$F$2,8) -> FALSE | D16: =_xll.PTreeNodeProbability(treeCalc_6!$F$2,8) -> 0
C17: =PROFIT!H6 -> 0 | D17: =_xll.PTreeNodeValue(treeCalc_6!$F$2,8) -> 0
C18: =_xll.PTreeNodeDecision(treeCalc_6!$F$2,9) -> FALSE | D18: =_xll.PTreeNodeProbability(treeCalc_6!$F$2,9) -> 0
C19: =PROFIT!I6 -> 0.02 | D19: =_xll.PTreeNodeValue(treeCalc_6!$F$2,9) -> 0.02
C20: =_xll.PTreeNodeDecision(treeCalc_6!$F$2,10) -> FALSE | D20: =_xll.PTreeNodeProbability(treeCalc_6!$F$2,10) -> 0
C21: =PROFIT!J6 -> 0 | D21: =_xll.PTreeNodeValue(treeCalc_6!$F$2,10) -> 0

Sheet treeCalc_6 (hidden)
A1: Name | B1: MIN Pr(LOSS) TREE | E1: Ptree1 Compatibility | F1: 3 | H1: Output Label | K1: R-Value Ref. | L1: 100
A2: SheetRef | B2: ='MIN Pr(LOSS)'!#REF! ->  | E2: Eval. Function | F2: =_xll.PTreeEvaluate5(B3,$L$11:$L$20,$J$11:$J$20,$K$11:$K$20,$N$11:$N$20,$G$11:$G$20,,L1) -> 154702470
A3: GenInfo | B3: 0,6,1,0,0,Exponential, 0,0,0,0,-1,-1,.0001 | E3: Creation Version | F3: 6.3.0 | H3: Output Value NF | I3: <NF>
A4: Def. Link | B4: = | E4: Required Version | F4: 5.0.0 | H4: Output Prob NF | I4: Automatic
A5: EXT REFS | B5: 0 | D5: 0 | E5: Recommended Version | F5: 5.0.0 | H5: Input Value NF | I5: <NF>
A6: Def. Form | E6: Last Modified By Version | F6: 8.2.0 | H6: Input Prob NF | I6: Automatic
A7: Calc Macro | F7: 2C92A651
A8: Highest# | B8: 10
A10: Anchor Cell | B10: Branch Name | C10: bformtype | D10: valformula | E10: pbformula | F10: distribution | G10: cumPayoffFunction | H10: link | I10: ENDNODEFORMULA | J10: VAL | K10: PB | L10: GenInfo | M10: IntRefs | N10: RefRefs | O10: NodeNames | P10: Collapsed
A11: ='MIN Pr(LOSS)'!$C$5 -> 0 | B11: =B1 -> MIN Pr(LOSS) TREE | C11: 0 | I11: DEFAULT | J11: ='MIN Pr(LOSS)'!$B$5 -> 0 | K11: ='MIN Pr(LOSS)'!$B$4 -> 0 | L11: 2,0,0,9,2,3,4,5,6,7,8,9,10,0,0,0 | M11: 0 | O11: ='MIN Pr(LOSS)'!$C$4 -> Decision | P11: FALSE
A12: ='MIN Pr(LOSS)'!$D$3 -> 0.09 | B12: ALTERNATIVE 1 | C12: 0 | H12: DEFAULT | I12: DEFAULT | J12: ='MIN Pr(LOSS)'!$C$3 -> 0.09 | L12: 4,0,0,0,1,0,0 | M12: 0 | P12: FALSE
A13: ='MIN Pr(LOSS)'!$D$7 -> 0 | B13: ALTERNATIVE 2 | C13: 0 | H13: DEFAULT | I13: DEFAULT | J13: ='MIN Pr(LOSS)'!$C$7 -> 0 | L13: 4,0,0,0,1,0,0 | M13: 0 | P13: FALSE
A14: ='MIN Pr(LOSS)'!$D$9 -> 0.05 | B14: ALTERNATIVE 3 | C14: 0 | H14: DEFAULT | I14: DEFAULT | J14: ='MIN Pr(LOSS)'!$C$9 -> 0.05 | L14: 4,0,0,0,1,0,0 | M14: 0 | P14: FALSE
A15: ='MIN Pr(LOSS)'!$D$11 -> 0 | B15: ALTERNATIVE 4 | C15: 0 | H15: DEFAULT | I15: DEFAULT | J15: ='MIN Pr(LOSS)'!$C$11 -> 0 | L15: 4,0,0,0,1,0,0 | M15: 0 | P15: FALSE
A16: ='MIN Pr(LOSS)'!$D$13 -> 0.21 | B16: ALTERNATIVE 5 | C16: 0 | H16: DEFAULT | I16: DEFAULT | J16: ='MIN Pr(LOSS)'!$C$13 -> 0.21 | L16: 4,0,0,0,1,0,0 | M16: 0 | P16: FALSE
A17: ='MIN Pr(LOSS)'!$D$15 -> 0 | B17: ALTERNATIVE 6 | C17: 0 | H17: DEFAULT | I17: DEFAULT | J17: ='MIN Pr(LOSS)'!$C$15 -> 0 | L17: 4,0,0,0,1,0,0 | M17: 0 | P17: FALSE
A18: ='MIN Pr(LOSS)'!$D$17 -> 0 | B18: ALTERNATIVE 7 | C18: 0 | H18: DEFAULT | I18: DEFAULT | J18: ='MIN Pr(LOSS)'!$C$17 -> 0 | L18: 4,0,0,0,1,0,0 | M18: 0 | P18: FALSE
A19: ='MIN Pr(LOSS)'!$D$19 -> 0.02 | B19: ALTERNATIVE 8 | C19: 0 | H19: DEFAULT | I19: DEFAULT | J19: ='MIN Pr(LOSS)'!$C$19 -> 0.02 | L19: 4,0,0,0,1,0,0 | M19: 0 | P19: FALSE
A20: ='MIN Pr(LOSS)'!$D$21 -> 0 | B20: ALTERNATIVE 9 | C20: 0 | H20: DEFAULT | I20: DEFAULT | J20: ='MIN Pr(LOSS)'!$C$21 -> 0 | L20: 4,0,0,0,1,0,0 | M20: 0 | P20: FALSE

Sheet treeCalc_1 (hidden)
A1: Name | B1: MIN COST TREE | E1: Ptree1 Compatibility | F1: 3 | H1: Output Label | K1: R-Value Ref. | L1: 100
A2: SheetRef | B2: ='MIN COST TREE'!#REF! ->  | E2: Eval. Function | F2: =_xll.PTreeEvaluate5(B3,$L$11:$L$20,$J$11:$J$20,$K$11:$K$20,$N$11:$N$20,$G$11:$G$20,,L1) -> 154831105
A3: GenInfo | B3: 0,1,1,0,0,Exponential, 0,0,0,0,-1,-1,.0001 | E3: Creation Version | F3: 6.3.0 | H3: Output Value NF | I3: <NF>
A4: Def. Link | B4: = | E4: Required Version | F4: 5.0.0 | H4: Output Prob NF | I4: Automatic
A5: EXT REFS | B5: 0 | E5: Recommended Version | F5: 5.0.0 | H5: Input Value NF | I5: <NF>
A6: Def. Form | E6: Last Modified By Version | F6: 8.2.0 | H6: Input Prob NF | I6: Automatic
A7: Calc Macro | F7: 1F8651FF
A8: Highest# | B8: 10
A10: Anchor Cell | B10: Branch Name | C10: bformtype | D10: valformula | E10: pbformula | F10: distribution | G10: cumPayoffFunction | H10: link | I10: ENDNODEFORMULA | J10: VAL | K10: PB | L10: GenInfo | M10: IntRefs | N10: RefRefs | O10: NodeNames | P10: Collapsed
A11: ='MIN COST TREE'!$C$5 -> 76 | B11: =B1 -> MIN COST TREE | C11: 0 | I11: DEFAULT | J11: ='MIN COST TREE'!$B$5 -> 0 | K11: ='MIN COST TREE'!$B$4 -> 0 | L11: 2,0,0,9,2,3,4,5,6,7,8,9,10,0,0,0 | M11: 0 | O11: ='MIN COST TREE'!$C$4 -> Decision | P11: FALSE
A12: ='MIN COST TREE'!$D$3 -> 151 | B12: ALTERNATIVE 1 | C12: 0 | H12: DEFAULT | I12: DEFAULT | J12: ='MIN COST TREE'!$C$3 -> 151 | L12: 4,0,0,0,1,0,0 | M12: 0 | P12: FALSE
A13: ='MIN COST TREE'!$D$7 -> 283 | B13: ALTERNATIVE 2 | C13: 0 | H13: DEFAULT | I13: DEFAULT | J13: ='MIN COST TREE'!$C$7 -> 283 | L13: 4,0,0,0,1,0,0 | M13: 0 | P13: FALSE
A14: ='MIN COST TREE'!$D$9 -> 227 | B14: ALTERNATIVE 3 | C14: 0 | H14: DEFAULT | I14: DEFAULT | J14: ='MIN COST TREE'!$C$9 -> 227 | L14: 4,0,0,0,1,0,0 | M14: 0 | P14: FALSE
A15: ='MIN COST TREE'!$D$11 -> 132 | B15: ALTERNATIVE 4 | C15: 0 | H15: DEFAULT | I15: DEFAULT | J15: ='MIN COST TREE'!$C$11 -> 132 | L15: 4,0,0,0,1,0,0 | M15: 0 | P15: FALSE
A16: ='MIN COST TREE'!$D$13 -> 283 | B16: ALTERNATIVE 5 | C16: 0 | H16: DEFAULT | I16: DEFAULT | J16: ='MIN COST TREE'!$C$13 -> 283 | L16: 4,0,0,0,1,0,0 | M16: 0 | P16: FALSE
A17: ='MIN COST TREE'!$D$15 -> 208 | B17: ALTERNATIVE 6 | C17: 0 | H17: DEFAULT | I17: DEFAULT | J17: ='MIN COST TREE'!$C$15 -> 208 | L17: 4,0,0,0,1,0,0 | M17: 0 | P17: FALSE
A18: ='MIN COST TREE'!$D$17 -> 76 | B18: ALTERNATIVE 7 | C18: 0 | H18: DEFAULT | I18: DEFAULT | J18: ='MIN COST TREE'!$C$17 -> 76 | L18: 4,0,0,0,1,0,0 | M18: 0 | P18: FALSE
A19: ='MIN COST TREE'!$D$19 -> 227 | B19: ALTERNATIVE 8 | C19: 0 | H19: DEFAULT | I19: DEFAULT | J19: ='MIN COST TREE'!$C$19 -> 227 | L19: 4,0,0,0,1,0,0 | M19: 0 | P19: FALSE
A20: ='MIN COST TREE'!$D$21 -> 208 | B20: ALTERNATIVE 9 | C20: 0 | H20: DEFAULT | I20: DEFAULT | J20: ='MIN COST TREE'!$C$21 -> 208 | L20: 4,0,0,0,1,0,0 | M20: 0 | P20: FALSE
